Workbook

Sheet 0.작성가이드
B2: 연구계획서 작성 가이드라인
B4: 연구계획서 구성
C6: 1. 연구내용 : 과제요약서, 목표 및 내용, 추진체계 및 전략 등 ▶ 한글파일(별도양식)
C8: 2. 연구비 세부내역, 계상기준, 계획서 표지 ▶ 엑셀파일
C10: 3. 첨부서류 : 장비활용계획서, 핵심성과지표, 연구윤리서약서 등 ▶ 한글파일(별도양식)
B12: 연구비 세부내역 및 계상기준 사용방법
C14: STEP 1. '기관고유사업 계상기준' Sheet 작성
C16: STEP 2. 통합정보시스템에 입력한 정보를 엑셀로 다운, '참여인원정보' Sheet에 붙여넣기
C17: (인건비 자동 계산)
C27: STEP 3. 세부내역('비목별 연구개발비 소요명세' Sheet) 작성
C28: ㉠ 음영(회색) 셀은 자동 계산되므로, 비음영 셀만 작성하시면 됩니다.
C29: ㉡ 숫자(인원수, 횟수, 금액 등) 입력란은 기타 텍스트 또는 음수(-) 입력이 불가능 합니다.
B31: 유의 사항
C33: 1. 100만원 초과 신규연구장비는 총 연구비에 포함되나 실제 연구비 편성에서는 제외됩니다.
C35: 2. 연구수당은 총 인건비의 20%를 초과하는 경우, 차액을 도서비로 계상합니다.
C37: 3. 각 세부항목('연구비 세부내역' Sheet) 작성 시, 우측 '도움말'을 참조 바랍니다.
B40: 연구계획서 제출
C42: 1. 모든 계획서 작성이 완료되면 등을 기본사업운영팀 사업담당자에게 제출합니다.
C44: 2. 제출하실 서류는 다음과 같습니다.
C46: - ①연구내용(한글), ②연구비 세부내역 등(엑셀), ③첨부서류(한글) - 제출시 한글파일, 엑셀파일도 함께 제출
C48: ※ 업무 담당자
C49: - 과제관리 : *****운영팀 이** (Tel.****)
C50: - 엑셀파일 에러 수정 : *****사업팀 권**(Tel.****)

Sheet 1.계상기준
B1: 계상기준 준수여부 점검표
O2: 작성일 | P2: 2016-03-01
B3: 1. 연구과제 기본정보 입력
B4: 구분 | E4: 내용 | M4: 비고
B5: 연구과제명 | E5: 퇴****** 타겟 ******** 연구
B6: 연구책임자 | E6: 유재석
B7: 연구기간 | E7: 2016-01-01 | G7: ~ | H7: 2016-12-31 | J7: 1 | K7: 3 | L7: 1
B8: 직접비 | E8: 500,000,000 원
B9: 추가배정직접비 | E9: 50,000,000 원
B10: 목적성 간접비 | F10: 기준 적용 | J10: 기준 미적용 | S10: 1
B12: 2. 계상 기준
B13: 가. 목적성 간접비(원 일괄사용) | J13: 나. 외부인건비, 위탁연구비, 회의비, 연구수당
B14: 구분 | E14: 기준 | J14: 구분 | M14: 기준
B15: 지식재산권 관리비 | E15: 직접비의 | G15: 1.70% | J15: 외부인건비 | M15: 직접비의 | O15: 30.0% | Q15: 이내
B16: 과학문화활동비 | E16: 직접비의 | G16: 1.15% | J16: 위탁연구비 | M16: 직접비의 | O16: 20.0% | Q16: 이내
B17: 연구실안전관리비 | E17: 직접비의 | G17: 1.25% | J17: 회의비 | M17: 직접비의 | O17: 3.0% | Q17: 이내
B18: 연구수당 | E18: 직접비의 | G18: 9.01% | J18: 연구수당 | M18: 직접비의 | O18: 20.0% | Q18: 이내
B19: 도서비 | E19: 직접비의 | G19: 3.27%
B20: 전기료 | E20: 직접비의 | G20: 7.50%
B21: 소계 | E21: 직접비의 | G21: =IFERROR(SUM(G15:H20),0) -> 23.88%
B23: 3. 연구계획서 반영연구비
B24: 가. 총 연구비 | I24: 나. 목적성 간접비(원 일괄사용)
B25: 구분 | E25: 금액 | I25: 구분 | L25: 금액(기준적용) | O25: 금액(기준미적용)
B26: 내부인건비 | E26: =IFERROR(SUM('3.연구비세부내역'!T6:W6,'3.연구비세부내역'!T8:W8),0) -> 228,601,920 원 | I26: 지식재산권 관리비 | L26: =IFERROR(IF($E$8="","",ROUNDDOWN($E$8*VLOOKUP($I26,$B$15:$H$21,6,0),-3)),"") -> 8,500,000 원 | O26: 3,000,000 원
B27: 외부인건비 | E27: =IFERROR(SUM('3.연구비세부내역'!T10:W10,'3.연구비세부내역'!T12:W12),0) -> 188,676,760 원 | I27: 과학문화활동비 | L27: =IFERROR(IF($E$8="","",ROUNDDOWN($E$8*VLOOKUP($I27,$B$15:$H$21,6,0),-3)),"") -> 5,750,000 원 | O27: 0
B28: 간접비 | E28: =IFERROR(IF(E26="","",E26*60%),"") -> 137,161,152 원 | I28: 연구실안전관리비 | L28: 6,250,000 원 | O28: 0
B29: 직접비 | E29: =IFERROR(SUM(E8:L9),"") -> 550,000,000 원 | I29: 연구수당 | L29: 45,050,000 원 | O29: 40,000,000 원
B30: 총연구비 | E30: =IFERROR(SUM(E26:G29),"") -> 1,104,439,832 원 | I30: 도서비 | L30: 16,350,000 원 | O30: 0
I31: 전기료 | L31: 37,500,000 원 | O31: 0
I32: 소계 | L32: =IFERROR(SUM(L26:N31),"") -> 119,400,000 원 | O32: =IFERROR(SUM(O26:Q31),"") -> 43,000,000 원
B33: 다. 계상한도 준수 여부
B34: 구분 | E34: 계상한도 | H34: 실제계상액 | K34: 준수여부
B35: 외부인건비 | E35: =IFERROR(IF($E$29="","",$E$29*VLOOKUP($B35,$J$15:$P$18,6,0)),"") -> 165,000,000 원 | H35: =IFERROR(SUM('3.연구비세부내역'!T10:W10,'3.연구비세부내역'!T12:W12),0) -> 188,676,760 원 | K35: =IFERROR(IF(OR(E35="",H35=""),"",IF(E35>=H35,"준수","미준수")),"") -> 미준수
B36: 위탁연구비 | E36: =IFERROR(IF($E$29="","",$E$29*VLOOKUP($B36,$J$15:$P$18,6,0)),"") -> 110,000,000 원 | H36: =IFERROR('3.연구비세부내역'!T282,0) -> 68,960,000 원 | K36: =IFERROR(IF(OR(E36="",H36=""),"",IF(E36>=H36,"준수","미준수")),"") -> 준수
B37: 회의비 | E37: 16,500,000 원 | H37: =IFERROR('3.연구비세부내역'!T257,0) -> 875,000 원 | K37: 준수
B38: 연구수당 | E38: 110,000,000 원 | H38: =IFERROR('3.연구비세부내역'!T262,0) -> 45,050,000 원 | K38: 준수

Sheet 2.참여인원
A1: 참여인원정보
A2: 2016-11-17
A3: 분류 | B3: 기관명 | C3: 성명 | D3: 과학기술인등록번호 | E3: 소속부서 | F3: 직급 | G3: 월급여 | H3: 참여시작 | I3: 참여종료 | J3: 참여기간 | K3: 참여율 | L3: 총액
A4: 내부 | B4: K***** | C4: 유재석 | E4: 연****** | F4: 책임연구원 | G4: 10,085,730 | H4: 2016-01-01 | I4: 2016-12-31 | J4: 12 | K4: 10.0 | L4: 12,102,880
A5: 내부 | B5: K***** | C5: 박명수 | E5: 연****** | F5: 책임연구원 | G5: 9,931,016 | H5: 2016-01-01 | I5: 2016-12-31 | J5: 12 | K5: 10.0 | L5: 11,917,220
A6: 내부 | B6: K***** | C6: 정준하 | E6: 연****** | F6: 책임연구원 | G6: 8,210,731 | H6: 2016-01-01 | I6: 2016-12-31 | J6: 12 | K6: 10.0 | L6: 9,852,880
A7: 내부 | B7: K***** | C7: 하하 | E7: 연****** | F7: 책임연구원 | G7: 7,969,170 | H7: 2016-01-01 | I7: 2016-12-31 | J7: 12 | K7: 10.0 | L7: 9,563,000
A8: 내부 | B8: K***** | C8: 양세형 | E8: ******본부장실 | F8: 책임연구원 | G8: 10,913,305 | H8: 2016-01-01 | I8: 2016-12-31 | J8: 12 | K8: 100.0 | L8: 130,959,660
A9: 내부 | B9: K***** | C9: 조세호 | E9: 연****** | F9: 선임연구원 | G9: 6,799,012 | H9: 2016-01-01 | I9: 2016-12-31 | J9: 12 | K9: 45.0 | L9: 36,714,660
A10: 내부 | B10: K***** | C10: 황광희 | E10: 연****** | F10: 선임전문원 | G10: 7,601,027 | H10: 2016-01-01 | I10: 2016-12-31 | J10: 12 | K10: 10.0 | L10: 9,121,230
A11: 내부 | B11: K***** | C11: 정형돈 | E11: 연****** | F11: 선임연구원 | G11: 6,975,327 | H11: 2016-01-01 | I11: 2016-12-31 | J11: 12 | K11: 10.0 | L11: 8,370,390
A12: 외부 | B12: K***** | C12: 노홍철 | E12: 연****** | F12: 기술원 | G12: 6,649,000 | H12: 2016-01-01 | I12: 2016-12-31 | J12: 12 | K12: 48.9 | L12: 39,000,000
A13: 외부 | B13: K***** | C13: 길 | E13: 연****** | F13: 인턴 | G13: 6,136,660 | H13: 2016-01-01 | I13: 2016-12-31 | J13: 12 | K13: 24.4 | L13: 18,000,000
A14: 외부 | B14: K***** | C14: 전진 | E14: 연****** | F14: Post-Doc | G14: 4,300,000 | H14: 2016-01-01 | I14: 2016-12-31 | J14: 12 | K14: 50.8 | L14: 26,200,000
A15: 외부 | B15: K***** | E15: 연****** | F15: 연구원 | G15: 3,839,000 | H15: 2016-01-01 | I15: 2016-12-31 | J15: 12 | K15: 36.5 | L15: 16,800,000
A16: 외부 | B16: K***** | E16: 연****** | F16: 연구전문위원 | G16: 7,029,460 | H16: 2016-01-01 | I16: 2016-12-31 | J16: 12 | K16: 50.0 | L16: 42,176,760
A17: 학생 | B17: 홍***** | E17: 연****** | F17: 학연 | G17: 1,800,000 | H17: 2016-01-01 | I17: 2016-12-31 | J17: 12 | K17: 15.0 | L17: 3,240,000
A18: 학생 | B18: 고***** | E18: 연****** | F18: 학연 | G18: 2,500,000 | H18: 2016-01-01 | I18: 2016-12-31 | J18: 12 | K18: 15.0 | L18: 4,500,000
A19: 학생 | B19: 연***** | E19: 연****** | F19: 학연 | G19: 2,500,000 | H19: 2016-01-01 | I19: 2016-12-31 | J19: 12 | K19: 18.8 | L19: 5,640,000
A20: 학생 | B20: 고***** | E20: 연****** | F20: 학연 | G20: 1,800,000 | H20: 2016-01-01 | I20: 2016-12-31 | J20: 12 | K20: 15.0 | L20: 3,240,000
A21: 학생 | B21: 고***** | E21: 연****** | F21: 학연 | G21: 1,800,000 | H21: 2016-01-01 | I21: 2016-12-31 | J21: 12 | K21: 15.0 | L21: 3,240,000
A22: 학생 | B22: 중***** | E22: 연****** | F22: 학연 | G22: 1,800,000 | H22: 2016-01-01 | I22: 2016-12-31 | J22: 12 | K22: 15.0 | L22: 3,240,000
A23: 학생 | B23: 고***** | E23: 연****** | F23: 학연 | G23: 1,800,000 | H23: 2016-01-01 | I23: 2016-12-31 | J23: 12 | K23: 15.0 | L23: 3,240,000
A24: 학생 | B24: 고***** | E24: ******본부장실 | F24: 학연 | G24: 1,800,000 | H24: 2016-01-01 | I24: 2016-12-31 | J24: 12 | K24: 16.7 | L24: 3,600,000
A25: 학생 | B25: 고***** | E25: ******본부장실 | F25: 학연 | G25: 1,800,000 | H25: 2016-01-01 | I25: 2016-12-31 | J25: 12 | K25: 16.7 | L25: 3,600,000
A26: 학생 | B26: 한***** | E26: 연****** | F26: 학연 | G26: 1,800,000 | H26: 2016-01-01 | I26: 2016-12-31 | J26: 12 | K26: 15.0 | L26: 3,240,000
A27: 학생 | B27: 한***** | E27: 연****** | F27: 학연 | G27: 1,800,000 | H27: 2016-01-01 | I27: 2016-12-31 | J27: 12 | K27: 15.0 | L27: 3,240,000
A28: 학생 | B28: 영***** | E28: 연****** | F28: 학연 | G28: 1,800,000 | H28: 2016-01-01 | I28: 2016-12-31 | J28: 12 | K28: 15.0 | L28: 3,240,000
A29: 학생 | B29: P***** C***** U***** | E29: 연****** | F29: 학연 | G29: 1,800,000 | H29: 2016-01-01 | I29: 2016-12-31 | J29: 12 | K29: 15.0 | L29: 3,240,000

Sheet 3.연구비세부내역
B2: 1. 직접비 | T2: =IFERROR(SUM(T4,T47,T176,T237,T262,T267,T272,T277,T282),0) -> 825,748,874
C4: 가. 인건비 | T4: =IFERROR(SUM(T6:U12),0) -> 417,278,680 | Z4: 인건비
B6: 내부정직원 | D6: 1) 내부인건비 - 정직원 | T6: =IFERROR(SUMIF($A$16:$A$45,$B6,$B$16:$B$45),0) -> 207,121,700 | AA6: ㅇ내부인건비(해당 연구개발과제에 직접 참여하는 내부연구원에게 지급하는 인건비) - 과제참여연구원은 최소 10%이상 참여를 원칙으로 함 ㅇ외부인건비(해당 연구개발과제에 직접 참여하는 외부연구원에게 지급하는 인건비) - 외부인건비와 학생인건비의 합은 직접비의 30%이내로 계상(초과시 별도 내부결재 승인 필요) ㅇ학생인건비(창여연구원 중 근로소득이 없는 학사, 석사, 박사과정에 재학중인 학생) - 단가 : 학사과정 : 1,000,000원, 석사과정: 1,800,000원, 박사과정: 2,500,000원
B8: 내부무기계약직 | D8: 2) 내부인건비 - 무기계약직 | T8: =IFERROR(SUMIF($A$16:$A$45,$B8,$B$16:$B$45),0) -> 21,480,220
B10: 외부 | D10: 3) 외부인건비 | T10: =IFERROR(SUMIF($A$16:$A$45,$B10,$B$16:$B$45),0) -> 142,176,760
B12: 학생 | D12: 4) 학생인건비 | T12: =IFERROR(SUMIF($A$16:$A$45,$B12,$B$16:$B$45),0) -> 46,500,000
D14: No | E14: 세세목 | F14: 구분 | H14: 기관명 | J14: 성명 | K14: 과학기술인 등록번호 | M14: 부서명 | P14: 직급 | R14: 월인건비 단가 | T14: 참여 기간 | U14: 참여율 | V14: 합계
A16: =E16&F16 -> 내부정직원 | B16: =IFERROR(V16*1,0) -> 12,102,880 | C16: =IFERROR(IF(OR(E16="외부",E16="학생",E16=""),"",2),"") -> 2 | D16: =IFERROR(IF(E16="","",1),"") -> 1 | E16: =IFERROR(IF('2.참여인원'!A4="","",'2.참여인원'!A4),"") -> 내부 | F16: 정직원 | H16: =IFERROR(IF(D16="","",'2.참여인원'!B4),"") -> K***** | J16: =IFERROR(IF(OR(D16="",'2.참여인원'!C4=""),"",'2.참여인원'!C4),"") -> 유재석 | K16: =IFERROR(IF(OR(D16="",'2.참여인원'!D4=""),"",'2.참여인원'!D4),"") ->  | M16: =IFERROR(IF(D16="","",'2.참여인원'!E4),"") -> 연****** | P16: =IFERROR(IF(D16="","",'2.참여인원'!F4),"") -> 책임연구원 | R16: =IFERROR(IF(D16="","",'2.참여인원'!G4),"") -> 10,085,730 | T16: =IFERROR(IF(D16="","",'2.참여인원'!J4),"") -> 12 | U16: =IFERROR(IF(D16="","",'2.참여인원'!K4),"") -> 10.0 | V16: =IFERROR(IF(D16="","",'2.참여인원'!L4),"") -> 12,102,880
A17: 내부무기계약직 | B17: 11,917,220 | C17: =IFERROR(IF(OR(E17="외부",E17="학생",E17=""),"",2),"") -> 2 | D17: =IFERROR(IF(E17="","",D16+1),"") -> 2 | E17: =IFERROR(IF('2.참여인원'!A5="","",'2.참여인원'!A5),"") -> 내부 | F17: 무기계약직 | H17: =IFERROR(IF(D17="","",'2.참여인원'!B5),"") -> K***** | J17: =IFERROR(IF(OR(D17="",'2.참여인원'!C5=""),"",'2.참여인원'!C5),"") -> 박명수 | K17: =IFERROR(IF(OR(D17="",'2.참여인원'!D5=""),"",'2.참여인원'!D5),"") ->  | M17: =IFERROR(IF(D17="","",'2.참여인원'!E5),"") -> 연****** | P17: =IFERROR(IF(D17="","",'2.참여인원'!F5),"") -> 책임연구원 | R17: =IFERROR(IF(D17="","",'2.참여인원'!G5),"") -> 9,931,016 | T17: =IFERROR(IF(D17="","",'2.참여인원'!J5),"") -> 12 | U17: =IFERROR(IF(D17="","",'2.참여인원'!K5),"") -> 10.0 | V17: =IFERROR(IF(D17="","",'2.참여인원'!L5),"") -> 11,917,220
A18: 내부정직원 | B18: 9,852,880 | C18: 2 | D18: =IFERROR(IF(E18="","",D17+1),"") -> 3 | E18: =IFERROR(IF('2.참여인원'!A6="","",'2.참여인원'!A6),"") -> 내부 | F18: 정직원 | H18: =IFERROR(IF(D18="","",'2.참여인원'!B6),"") -> K***** | J18: =IFERROR(IF(OR(D18="",'2.참여인원'!C6=""),"",'2.참여인원'!C6),"") -> 정준하 | K18: =IFERROR(IF(OR(D18="",'2.참여인원'!D6=""),"",'2.참여인원'!D6),"") ->  | M18: =IFERROR(IF(D18="","",'2.참여인원'!E6),"") -> 연****** | P18: =IFERROR(IF(D18="","",'2.참여인원'!F6),"") -> 책임연구원 | R18: =IFERROR(IF(D18="","",'2.참여인원'!G6),"") -> 8,210,731 | T18: =IFERROR(IF(D18="","",'2.참여인원'!J6),"") -> 12 | U18: =IFERROR(IF(D18="","",'2.참여인원'!K6),"") -> 10.0 | V18: =IFERROR(IF(D18="","",'2.참여인원'!L6),"") -> 9,852,880
A19: 내부무기계약직 | B19: 9,563,000 | C19: 2 | D19: 4 | E19: =IFERROR(IF('2.참여인원'!A7="","",'2.참여인원'!A7),"") -> 내부 | F19: 무기계약직 | H19: =IFERROR(IF(D19="","",'2.참여인원'!B7),"") -> K***** | J19: =IFERROR(IF(OR(D19="",'2.참여인원'!C7=""),"",'2.참여인원'!C7),"") -> 하하 | K19: =IFERROR(IF(OR(D19="",'2.참여인원'!D7=""),"",'2.참여인원'!D7),"") ->  | M19: =IFERROR(IF(D19="","",'2.참여인원'!E7),"") -> 연****** | P19: =IFERROR(IF(D19="","",'2.참여인원'!F7),"") -> 책임연구원 | R19: =IFERROR(IF(D19="","",'2.참여인원'!G7),"") -> 7,969,170 | T19: =IFERROR(IF(D19="","",'2.참여인원'!J7),"") -> 12 | U19: =IFERROR(IF(D19="","",'2.참여인원'!K7),"") -> 10.0 | V19: =IFERROR(IF(D19="","",'2.참여인원'!L7),"") -> 9,563,000
A20: 내부정직원 | B20: 130,959,660 | C20: 2 | D20: 5 | E20: =IFERROR(IF('2.참여인원'!A8="","",'2.참여인원'!A8),"") -> 내부 | F20: 정직원 | H20: =IFERROR(IF(D20="","",'2.참여인원'!B8),"") -> K***** | J20: =IFERROR(IF(OR(D20="",'2.참여인원'!C8=""),"",'2.참여인원'!C8),"") -> 양세형 | K20: =IFERROR(IF(OR(D20="",'2.참여인원'!D8=""),"",'2.참여인원'!D8),"") ->  | M20: =IFERROR(IF(D20="","",'2.참여인원'!E8),"") -> ******본부장실 | P20: =IFERROR(IF(D20="","",'2.참여인원'!F8),"") -> 책임연구원 | R20: =IFERROR(IF(D20="","",'2.참여인원'!G8),"") -> 10,913,305 | T20: =IFERROR(IF(D20="","",'2.참여인원'!J8),"") -> 12 | U20: =IFERROR(IF(D20="","",'2.참여인원'!K8),"") -> 100.0 | V20: =IFERROR(IF(D20="","",'2.참여인원'!L8),"") -> 130,959,660
A21: 내부정직원 | B21: 36,714,660 | C21: 2 | D21: 6 | E21: =IFERROR(IF('2.참여인원'!A9="","",'2.참여인원'!A9),"") -> 내부 | F21: 정직원 | H21: =IFERROR(IF(D21="","",'2.참여인원'!B9),"") -> K***** | J21: =IFERROR(IF(OR(D21="",'2.참여인원'!C9=""),"",'2.참여인원'!C9),"") -> 조세호 | K21: =IFERROR(IF(OR(D21="",'2.참여인원'!D9=""),"",'2.참여인원'!D9),"") ->  | M21: =IFERROR(IF(D21="","",'2.참여인원'!E9),"") -> 연****** | P21: =IFERROR(IF(D21="","",'2.참여인원'!F9),"") -> 선임연구원 | R21: =IFERROR(IF(D21="","",'2.참여인원'!G9),"") -> 6,799,012 | T21: =IFERROR(IF(D21="","",'2.참여인원'!J9),"") -> 12 | U21: =IFERROR(IF(D21="","",'2.참여인원'!K9),"") -> 45.0 | V21: =IFERROR(IF(D21="","",'2.참여인원'!L9),"") -> 36,714,660
A22: 내부정직원 | B22: 9,121,230 | C22: 2 | D22: 7 | E22: =IFERROR(IF('2.참여인원'!A10="","",'2.참여인원'!A10),"") -> 내부 | F22: 정직원 | H22: =IFERROR(IF(D22="","",'2.참여인원'!B10),"") -> K***** | J22: =IFERROR(IF(OR(D22="",'2.참여인원'!C10=""),"",'2.참여인원'!C10),"") -> 황광희 | K22: =IFERROR(IF(OR(D22="",'2.참여인원'!D10=""),"",'2.참여인원'!D10),"") ->  | M22: =IFERROR(IF(D22="","",'2.참여인원'!E10),"") -> 연****** | P22: =IFERROR(IF(D22="","",'2.참여인원'!F10),"") -> 선임전문원 | R22: =IFERROR(IF(D22="","",'2.참여인원'!G10),"") -> 7,601,027 | T22: =IFERROR(IF(D22="","",'2.참여인원'!J10),"") -> 12 | U22: =IFERROR(IF(D22="","",'2.참여인원'!K10),"") -> 10.0 | V22: =IFERROR(IF(D22="","",'2.참여인원'!L10),"") -> 9,121,230
A23: 내부정직원 | B23: 8,370,390 | C23: 2 | D23: 8 | E23: =IFERROR(IF('2.참여인원'!A11="","",'2.참여인원'!A11),"") -> 내부 | F23: 정직원 | H23: =IFERROR(IF(D23="","",'2.참여인원'!B11),"") -> K***** | J23: =IFERROR(IF(OR(D23="",'2.참여인원'!C11=""),"",'2.참여인원'!C11),"") -> 정형돈 | K23: =IFERROR(IF(OR(D23="",'2.참여인원'!D11=""),"",'2.참여인원'!D11),"") ->  | M23: =IFERROR(IF(D23="","",'2.참여인원'!E11),"") -> 연****** | P23: =IFERROR(IF(D23="","",'2.참여인원'!F11),"") -> 선임연구원 | R23: =IFERROR(IF(D23="","",'2.참여인원'!G11),"") -> 6,975,327 | T23: =IFERROR(IF(D23="","",'2.참여인원'!J11),"") -> 12 | U23: =IFERROR(IF(D23="","",'2.참여인원'!K11),"") -> 10.0 | V23: =IFERROR(IF(D23="","",'2.참여인원'!L11),"") -> 8,370,390
A24: 외부 | B24: 39,000,000 | D24: 9 | E24: =IFERROR(IF('2.참여인원'!A12="","",'2.참여인원'!A12),"") -> 외부 | H24: =IFERROR(IF(D24="","",'2.참여인원'!B12),"") -> K***** | J24: =IFERROR(IF(OR(D24="",'2.참여인원'!C12=""),"",'2.참여인원'!C12),"") -> 노홍철 | K24: =IFERROR(IF(OR(D24="",'2.참여인원'!D12=""),"",'2.참여인원'!D12),"") ->  | M24: =IFERROR(IF(D24="","",'2.참여인원'!E12),"") -> 연****** | P24: =IFERROR(IF(D24="","",'2.참여인원'!F12),"") -> 기술원 | R24: =IFERROR(IF(D24="","",'2.참여인원'!G12),"") -> 6,649,000 | T24: =IFERROR(IF(D24="","",'2.참여인원'!J12),"") -> 12 | U24: =IFERROR(IF(D24="","",'2.참여인원'!K12),"") -> 48.9 | V24: =IFERROR(IF(D24="","",'2.참여인원'!L12),"") -> 39,000,000
A25: 외부 | B25: 18,000,000 | D25: 10 | E25: =IFERROR(IF('2.참여인원'!A13="","",'2.참여인원'!A13),"") -> 외부 | H25: =IFERROR(IF(D25="","",'2.참여인원'!B13),"") -> K***** | J25: =IFERROR(IF(OR(D25="",'2.참여인원'!C13=""),"",'2.참여인원'!C13),"") -> 길 | K25: =IFERROR(IF(OR(D25="",'2.참여인원'!D13=""),"",'2.참여인원'!D13),"") ->  | M25: =IFERROR(IF(D25="","",'2.참여인원'!E13),"") -> 연****** | P25: =IFERROR(IF(D25="","",'2.참여인원'!F13),"") -> 인턴 | R25: =IFERROR(IF(D25="","",'2.참여인원'!G13),"") -> 6,136,660 | T25: =IFERROR(IF(D25="","",'2.참여인원'!J13),"") -> 12 | U25: =IFERROR(IF(D25="","",'2.참여인원'!K13),"") -> 24.4 | V25: =IFERROR(IF(D25="","",'2.참여인원'!L13),"") -> 18,000,000
A26: 외부 | B26: 26,200,000 | D26: 11 | E26: =IFERROR(IF('2.참여인원'!A14="","",'2.참여인원'!A14),"") -> 외부 | H26: =IFERROR(IF(D26="","",'2.참여인원'!B14),"") -> K***** | J26: =IFERROR(IF(OR(D26="",'2.참여인원'!C14=""),"",'2.참여인원'!C14),"") -> 전진 | K26: =IFERROR(IF(OR(D26="",'2.참여인원'!D14=""),"",'2.참여인원'!D14),"") ->  | M26: =IFERROR(IF(D26="","",'2.참여인원'!E14),"") -> 연****** | P26: =IFERROR(IF(D26="","",'2.참여인원'!F14),"") -> Post-Doc | R26: =IFERROR(IF(D26="","",'2.참여인원'!G14),"") -> 4,300,000 | T26: =IFERROR(IF(D26="","",'2.참여인원'!J14),"") -> 12 | U26: =IFERROR(IF(D26="","",'2.참여인원'!K14),"") -> 50.8 | V26: =IFERROR(IF(D26="","",'2.참여인원'!L14),"") -> 26,200,000
A27: 외부 | B27: 16,800,000 | D27: 12 | E27: =IFERROR(IF('2.참여인원'!A15="","",'2.참여인원'!A15),"") -> 외부 | H27: =IFERROR(IF(D27="","",'2.참여인원'!B15),"") -> K***** | J27: =IFERROR(IF(OR(D27="",'2.참여인원'!C15=""),"",'2.참여인원'!C15),"") ->  | K27: =IFERROR(IF(OR(D27="",'2.참여인원'!D15=""),"",'2.참여인원'!D15),"") ->  | M27: =IFERROR(IF(D27="","",'2.참여인원'!E15),"") -> 연****** | P27: =IFERROR(IF(D27="","",'2.참여인원'!F15),"") -> 연구원 | R27: =IFERROR(IF(D27="","",'2.참여인원'!G15),"") -> 3,839,000 | T27: =IFERROR(IF(D27="","",'2.참여인원'!J15),"") -> 12 | U27: =IFERROR(IF(D27="","",'2.참여인원'!K15),"") -> 36.5 | V27: =IFERROR(IF(D27="","",'2.참여인원'!L15),"") -> 16,800,000
A28: 외부 | B28: 42,176,760 | D28: 13 | E28: =IFERROR(IF('2.참여인원'!A16="","",'2.참여인원'!A16),"") -> 외부 | H28: =IFERROR(IF(D28="","",'2.참여인원'!B16),"") -> K***** | J28: =IFERROR(IF(OR(D28="",'2.참여인원'!C16=""),"",'2.참여인원'!C16),"") ->  | K28: =IFERROR(IF(OR(D28="",'2.참여인원'!D16=""),"",'2.참여인원'!D16),"") ->  | M28: =IFERROR(IF(D28="","",'2.참여인원'!E16),"") -> 연****** | P28: =IFERROR(IF(D28="","",'2.참여인원'!F16),"") -> 연구전문위원 | R28: =IFERROR(IF(D28="","",'2.참여인원'!G16),"") -> 7,029,460 | T28: =IFERROR(IF(D28="","",'2.참여인원'!J16),"") -> 12 | U28: =IFERROR(IF(D28="","",'2.참여인원'!K16),"") -> 50.0 | V28: =IFERROR(IF(D28="","",'2.참여인원'!L16),"") -> 42,176,760
A29: 학생 | B29: 3,240,000 | D29: 14 | E29: =IFERROR(IF('2.참여인원'!A17="","",'2.참여인원'!A17),"") -> 학생 | H29: =IFERROR(IF(D29="","",'2.참여인원'!B17),"") -> 홍***** | J29: =IFERROR(IF(OR(D29="",'2.참여인원'!C17=""),"",'2.참여인원'!C17),"") ->  | K29: =IFERROR(IF(OR(D29="",'2.참여인원'!D17=""),"",'2.참여인원'!D17),"") ->  | M29: =IFERROR(IF(D29="","",'2.참여인원'!E17),"") -> 연****** | P29: =IFERROR(IF(D29="","",'2.참여인원'!F17),"") -> 학연 | R29: =IFERROR(IF(D29="","",'2.참여인원'!G17),"") -> 1,800,000 | T29: =IFERROR(IF(D29="","",'2.참여인원'!J17),"") -> 12 | U29: =IFERROR(IF(D29="","",'2.참여인원'!K17),"") -> 15.0 | V29: =IFERROR(IF(D29="","",'2.참여인원'!L17),"") -> 3,240,000
A30: 학생 | B30: 4,500,000 | D30: 15 | E30: =IFERROR(IF('2.참여인원'!A18="","",'2.참여인원'!A18),"") -> 학생 | H30: =IFERROR(IF(D30="","",'2.참여인원'!B18),"") -> 고***** | J30: =IFERROR(IF(OR(D30="",'2.참여인원'!C18=""),"",'2.참여인원'!C18),"") ->  | K30: =IFERROR(IF(OR(D30="",'2.참여인원'!D18=""),"",'2.참여인원'!D18),"") ->  | M30: =IFERROR(IF(D30="","",'2.참여인원'!E18),"") -> 연****** | P30: =IFERROR(IF(D30="","",'2.참여인원'!F18),"") -> 학연 | R30: =IFERROR(IF(D30="","",'2.참여인원'!G18),"") -> 2,500,000 | T30: =IFERROR(IF(D30="","",'2.참여인원'!J18),"") -> 12 | U30: =IFERROR(IF(D30="","",'2.참여인원'!K18),"") -> 15.0 | V30: =IFERROR(IF(D30="","",'2.참여인원'!L18),"") -> 4,500,000
A31: 학생 | B31: 5,640,000 | D31: 16 | E31: =IFERROR(IF('2.참여인원'!A19="","",'2.참여인원'!A19),"") -> 학생 | H31: =IFERROR(IF(D31="","",'2.참여인원'!B19),"") -> 연***** | J31: =IFERROR(IF(OR(D31="",'2.참여인원'!C19=""),"",'2.참여인원'!C19),"") ->  | K31: =IFERROR(IF(OR(D31="",'2.참여인원'!D19=""),"",'2.참여인원'!D19),"") ->  | M31: =IFERROR(IF(D31="","",'2.참여인원'!E19),"") -> 연****** | P31: =IFERROR(IF(D31="","",'2.참여인원'!F19),"") -> 학연 | R31: =IFERROR(IF(D31="","",'2.참여인원'!G19),"") -> 2,500,000 | T31: =IFERROR(IF(D31="","",'2.참여인원'!J19),"") -> 12 | U31: =IFERROR(IF(D31="","",'2.참여인원'!K19),"") -> 18.8 | V31: =IFERROR(IF(D31="","",'2.참여인원'!L19),"") -> 5,640,000
A32: 학생 | B32: 3,240,000 | D32: 17 | E32: =IFERROR(IF('2.참여인원'!A20="","",'2.참여인원'!A20),"") -> 학생 | H32: =IFERROR(IF(D32="","",'2.참여인원'!B20),"") -> 고***** | J32: =IFERROR(IF(OR(D32="",'2.참여인원'!C20=""),"",'2.참여인원'!C20),"") ->  | K32: =IFERROR(IF(OR(D32="",'2.참여인원'!D20=""),"",'2.참여인원'!D20),"") ->  | M32: =IFERROR(IF(D32="","",'2.참여인원'!E20),"") -> 연****** | P32: =IFERROR(IF(D32="","",'2.참여인원'!F20),"") -> 학연 | R32: =IFERROR(IF(D32="","",'2.참여인원'!G20),"") -> 1,800,000 | T32: =IFERROR(IF(D32="","",'2.참여인원'!J20),"") -> 12 | U32: =IFERROR(IF(D32="","",'2.참여인원'!K20),"") -> 15.0 | V32: =IFERROR(IF(D32="","",'2.참여인원'!L20),"") -> 3,240,000
A33: 학생 | B33: 3,240,000 | D33: 18 | E33: =IFERROR(IF('2.참여인원'!A21="","",'2.참여인원'!A21),"") -> 학생 | H33: =IFERROR(IF(D33="","",'2.참여인원'!B21),"") -> 고***** | J33: =IFERROR(IF(OR(D33="",'2.참여인원'!C21=""),"",'2.참여인원'!C21),"") ->  | K33: =IFERROR(IF(OR(D33="",'2.참여인원'!D21=""),"",'2.참여인원'!D21),"") ->  | M33: =IFERROR(IF(D33="","",'2.참여인원'!E21),"") -> 연****** | P33: =IFERROR(IF(D33="","",'2.참여인원'!F21),"") -> 학연 | R33: =IFERROR(IF(D33="","",'2.참여인원'!G21),"") -> 1,800,000 | T33: =IFERROR(IF(D33="","",'2.참여인원'!J21),"") -> 12 | U33: =IFERROR(IF(D33="","",'2.참여인원'!K21),"") -> 15.0 | V33: =IFERROR(IF(D33="","",'2.참여인원'!L21),"") -> 3,240,000
A34: 학생 | B34: 3,240,000 | D34: 19 | E34: =IFERROR(IF('2.참여인원'!A22="","",'2.참여인원'!A22),"") -> 학생 | H34: =IFERROR(IF(D34="","",'2.참여인원'!B22),"") -> 중***** | J34: =IFERROR(IF(OR(D34="",'2.참여인원'!C22=""),"",'2.참여인원'!C22),"") ->  | K34: =IFERROR(IF(OR(D34="",'2.참여인원'!D22=""),"",'2.참여인원'!D22),"") ->  | M34: =IFERROR(IF(D34="","",'2.참여인원'!E22),"") -> 연****** | P34: =IFERROR(IF(D34="","",'2.참여인원'!F22),"") -> 학연 | R34: =IFERROR(IF(D34="","",'2.참여인원'!G22),"") -> 1,800,000 | T34: =IFERROR(IF(D34="","",'2.참여인원'!J22),"") -> 12 | U34: =IFERROR(IF(D34="","",'2.참여인원'!K22),"") -> 15.0 | V34: =IFERROR(IF(D34="","",'2.참여인원'!L22),"") -> 3,240,000
A35: 학생 | B35: 3,240,000 | D35: 20 | E35: =IFERROR(IF('2.참여인원'!A23="","",'2.참여인원'!A23),"") -> 학생 | H35: =IFERROR(IF(D35="","",'2.참여인원'!B23),"") -> 고***** | J35: =IFERROR(IF(OR(D35="",'2.참여인원'!C23=""),"",'2.참여인원'!C23),"") ->  | K35: =IFERROR(IF(OR(D35="",'2.참여인원'!D23=""),"",'2.참여인원'!D23),"") ->  | M35: =IFERROR(IF(D35="","",'2.참여인원'!E23),"") -> 연****** | P35: =IFERROR(IF(D35="","",'2.참여인원'!F23),"") -> 학연 | R35: =IFERROR(IF(D35="","",'2.참여인원'!G23),"") -> 1,800,000 | T35: =IFERROR(IF(D35="","",'2.참여인원'!J23),"") -> 12 | U35: =IFERROR(IF(D35="","",'2.참여인원'!K23),"") -> 15.0 | V35: =IFERROR(IF(D35="","",'2.참여인원'!L23),"") -> 3,240,000
A36: 학생 | B36: 3,600,000 | D36: 21 | E36: =IFERROR(IF('2.참여인원'!A24="","",'2.참여인원'!A24),"") -> 학생 | H36: =IFERROR(IF(D36="","",'2.참여인원'!B24),"") -> 고***** | J36: =IFERROR(IF(OR(D36="",'2.참여인원'!C24=""),"",'2.참여인원'!C24),"") ->  | K36: =IFERROR(IF(OR(D36="",'2.참여인원'!D24=""),"",'2.참여인원'!D24),"") ->  | M36: =IFERROR(IF(D36="","",'2.참여인원'!E24),"") -> ******본부장실 | P36: =IFERROR(IF(D36="","",'2.참여인원'!F24),"") -> 학연 | R36: =IFERROR(IF(D36="","",'2.참여인원'!G24),"") -> 1,800,000 | T36: =IFERROR(IF(D36="","",'2.참여인원'!J24),"") -> 12 | U36: =IFERROR(IF(D36="","",'2.참여인원'!K24),"") -> 16.7 | V36: =IFERROR(IF(D36="","",'2.참여인원'!L24),"") -> 3,600,000
A37: 학생 | B37: 3,600,000 | D37: 22 | E37: =IFERROR(IF('2.참여인원'!A25="","",'2.참여인원'!A25),"") -> 학생 | H37: =IFERROR(IF(D37="","",'2.참여인원'!B25),"") -> 고***** | J37: =IFERROR(IF(OR(D37="",'2.참여인원'!C25=""),"",'2.참여인원'!C25),"") ->  | K37: =IFERROR(IF(OR(D37="",'2.참여인원'!D25=""),"",'2.참여인원'!D25),"") ->  | M37: =IFERROR(IF(D37="","",'2.참여인원'!E25),"") -> ******본부장실 | P37: =IFERROR(IF(D37="","",'2.참여인원'!F25),"") -> 학연 | R37: =IFERROR(IF(D37="","",'2.참여인원'!G25),"") -> 1,800,000 | T37: =IFERROR(IF(D37="","",'2.참여인원'!J25),"") -> 12 | U37: =IFERROR(IF(D37="","",'2.참여인원'!K25),"") -> 16.7 | V37: =IFERROR(IF(D37="","",'2.참여인원'!L25),"") -> 3,600,000
A38: 학생 | B38: 3,240,000 | D38: 23 | E38: =IFERROR(IF('2.참여인원'!A26="","",'2.참여인원'!A26),"") -> 학생 | H38: =IFERROR(IF(D38="","",'2.참여인원'!B26),"") -> 한***** | J38: =IFERROR(IF(OR(D38="",'2.참여인원'!C26=""),"",'2.참여인원'!C26),"") ->  | K38: =IFERROR(IF(OR(D38="",'2.참여인원'!D26=""),"",'2.참여인원'!D26),"") ->  | M38: =IFERROR(IF(D38="","",'2.참여인원'!E26),"") -> 연****** | P38: =IFERROR(IF(D38="","",'2.참여인원'!F26),"") -> 학연 | R38: =IFERROR(IF(D38="","",'2.참여인원'!G26),"") -> 1,800,000 | T38: =IFERROR(IF(D38="","",'2.참여인원'!J26),"") -> 12 | U38: =IFERROR(IF(D38="","",'2.참여인원'!K26),"") -> 15.0 | V38: =IFERROR(IF(D38="","",'2.참여인원'!L26),"") -> 3,240,000
A39: 학생 | B39: 3,240,000 | D39: 24 | E39: =IFERROR(IF('2.참여인원'!A27="","",'2.참여인원'!A27),"") -> 학생 | H39: =IFERROR(IF(D39="","",'2.참여인원'!B27),"") -> 한***** | J39: =IFERROR(IF(OR(D39="",'2.참여인원'!C27=""),"",'2.참여인원'!C27),"") ->  | K39: =IFERROR(IF(OR(D39="",'2.참여인원'!D27=""),"",'2.참여인원'!D27),"") ->  | M39: =IFERROR(IF(D39="","",'2.참여인원'!E27),"") -> 연****** | P39: =IFERROR(IF(D39="","",'2.참여인원'!F27),"") -> 학연 | R39: =IFERROR(IF(D39="","",'2.참여인원'!G27),"") -> 1,800,000 | T39: =IFERROR(IF(D39="","",'2.참여인원'!J27),"") -> 12 | U39: =IFERROR(IF(D39="","",'2.참여인원'!K27),"") -> 15.0 | V39: =IFERROR(IF(D39="","",'2.참여인원'!L27),"") -> 3,240,000
A40: 학생 | B40: 3,240,000 | D40: 25 | E40: =IFERROR(IF('2.참여인원'!A28="","",'2.참여인원'!A28),"") -> 학생 | H40: =IFERROR(IF(D40="","",'2.참여인원'!B28),"") -> 영***** | J40: =IFERROR(IF(OR(D40="",'2.참여인원'!C28=""),"",'2.참여인원'!C28),"") ->  | K40: =IFERROR(IF(OR(D40="",'2.참여인원'!D28=""),"",'2.참여인원'!D28),"") ->  | M40: =IFERROR(IF(D40="","",'2.참여인원'!E28),"") -> 연****** | P40: =IFERROR(IF(D40="","",'2.참여인원'!F28),"") -> 학연 | R40: =IFERROR(IF(D40="","",'2.참여인원'!G28),"") -> 1,800,000 | T40: =IFERROR(IF(D40="","",'2.참여인원'!J28),"") -> 12 | U40: =IFERROR(IF(D40="","",'2.참여인원'!K28),"") -> 15.0 | V40: =IFERROR(IF(D40="","",'2.참여인원'!L28),"") -> 3,240,000
A41: 학생 | B41: 3,240,000 | D41: 26 | E41: =IFERROR(IF('2.참여인원'!A29="","",'2.참여인원'!A29),"") -> 학생 | H41: =IFERROR(IF(D41="","",'2.참여인원'!B29),"") -> P***** C***** U***** | J41: =IFERROR(IF(OR(D41="",'2.참여인원'!C29=""),"",'2.참여인원'!C29),"") ->  | K41: =IFERROR(IF(OR(D41="",'2.참여인원'!D29=""),"",'2.참여인원'!D29),"") ->  | M41: =IFERROR(IF(D41="","",'2.참여인원'!E29),"") -> 연****** | P41: =IFERROR(IF(D41="","",'2.참여인원'!F29),"") -> 학연 | R41: =IFERROR(IF(D41="","",'2.참여인원'!G29),"") -> 1,800,000 | T41: =IFERROR(IF(D41="","",'2.참여인원'!J29),"") -> 12 | U41: =IFERROR(IF(D41="","",'2.참여인원'!K29),"") -> 15.0 | V41: =IFERROR(IF(D41="","",'2.참여인원'!L29),"") -> 3,240,000
B42: 0 | E42: =IFERROR(IF('2.참여인원'!A30="","",'2.참여인원'!A30),"") ->  | H42: =IFERROR(IF(D42="","",'2.참여인원'!B30),"") ->  | J42: =IFERROR(IF(OR(D42="",'2.참여인원'!C30=""),"",'2.참여인원'!C30),"") ->  | K42: =IFERROR(IF(OR(D42="",'2.참여인원'!D30=""),"",'2.참여인원'!D30),"") ->  | M42: =IFERROR(IF(D42="","",'2.참여인원'!E30),"") ->  | P42: =IFERROR(IF(D42="","",'2.참여인원'!F30),"") ->  | R42: =IFERROR(IF(D42="","",'2.참여인원'!G30),"") ->  | T42: =IFERROR(IF(D42="","",'2.참여인원'!J30),"") ->  | U42: =IFERROR(IF(D42="","",'2.참여인원'!K30),"") ->  | V42: =IFERROR(IF(D42="","",'2.참여인원'!L30),"") -> 
B43: 0 | E43: =IFERROR(IF('2.참여인원'!A31="","",'2.참여인원'!A31),"") ->  | H43: =IFERROR(IF(D43="","",'2.참여인원'!B31),"") ->  | J43: =IFERROR(IF(OR(D43="",'2.참여인원'!C31=""),"",'2.참여인원'!C31),"") ->  | K43: =IFERROR(IF(OR(D43="",'2.참여인원'!D31=""),"",'2.참여인원'!D31),"") ->  | M43: =IFERROR(IF(D43="","",'2.참여인원'!E31),"") ->  | P43: =IFERROR(IF(D43="","",'2.참여인원'!F31),"") ->  | R43: =IFERROR(IF(D43="","",'2.참여인원'!G31),"") ->  | T43: =IFERROR(IF(D43="","",'2.참여인원'!J31),"") ->  | U43: =IFERROR(IF(D43="","",'2.참여인원'!K31),"") ->  | V43: =IFERROR(IF(D43="","",'2.참여인원'!L31),"") -> 
B44: 0 | E44: =IFERROR(IF('2.참여인원'!A32="","",'2.참여인원'!A32),"") ->  | H44: =IFERROR(IF(D44="","",'2.참여인원'!B32),"") ->  | J44: =IFERROR(IF(OR(D44="",'2.참여인원'!C32=""),"",'2.참여인원'!C32),"") ->  | K44: =IFERROR(IF(OR(D44="",'2.참여인원'!D32=""),"",'2.참여인원'!D32),"") ->  | M44: =IFERROR(IF(D44="","",'2.참여인원'!E32),"") ->  | P44: =IFERROR(IF(D44="","",'2.참여인원'!F32),"") ->  | R44: =IFERROR(IF(D44="","",'2.참여인원'!G32),"") ->  | T44: =IFERROR(IF(D44="","",'2.참여인원'!J32),"") ->  | U44: =IFERROR(IF(D44="","",'2.참여인원'!K32),"") ->  | V44: =IFERROR(IF(D44="","",'2.참여인원'!L32),"") -> 
B45: 0 | E45: =IFERROR(IF('2.참여인원'!A33="","",'2.참여인원'!A33),"") ->  | H45: =IFERROR(IF(D45="","",'2.참여인원'!B33),"") ->  | J45: =IFERROR(IF(OR(D45="",'2.참여인원'!C33=""),"",'2.참여인원'!C33),"") ->  | K45: =IFERROR(IF(OR(D45="",'2.참여인원'!D33=""),"",'2.참여인원'!D33),"") ->  | M45: =IFERROR(IF(D45="","",'2.참여인원'!E33),"") ->  | P45: =IFERROR(IF(D45="","",'2.참여인원'!F33),"") ->  | R45: =IFERROR(IF(D45="","",'2.참여인원'!G33),"") ->  | T45: =IFERROR(IF(D45="","",'2.참여인원'!J33),"") ->  | U45: =IFERROR(IF(D45="","",'2.참여인원'!K33),"") ->  | V45: =IFERROR(IF(D45="","",'2.참여인원'!L33),"") -> 
C47: 나. 연구장비재료비 | T47: =IFERROR(SUM(T49,T63,T167),0) -> 210,961,111
D49: 1) 연구기자재구입비 및 시설비 | T49: =IFERROR(SUM(T52:U61),0) -> 210,800,000 | Z49: 연구기자재구입비 및 시설비
D51: No. | E51: 세세목 | G51: 구분 | H51: 품명 | O51: 규격 | P51: 단위 | Q51: 단가(원) | S51: 수량 | T51: 합계 | V51: 비고 | AA51: ㅇ 장기간 사용할 수 있는 기기 장비와 부수기자재, 연구시설의 설치․구입․임차에 관한 경비 및 관련 부대장비 (해당 연구개발과제 수행과 관련 없는 범용성 장비는 제외) ㅇ 상세 내역 명시 요망(내용/단가/수량/총액 등) ㅇ 3천만원이상의 연구기자재 구입시 반드시 별첨 장비활용계획서 작성 요망 ㅇ 연구책임자는 기자재 구매 이전에 내·외부에 공동활용 가능한 장비가 있는지 유무를 NTIS에서 확인 ㅇ 구매 필요성이 있는 기자재 및 시설은 관련부서와 상의하여 구매 요구 ㅇ 구매가 완료된 기자재 및 시설에 대하여 검수부서의 확인 필요 ※ 최종(단계) 종료 2개월 이전에 구입이 완료(기기·장비가 도착되어 검수 완료)되어야 함 ㅇ 취득가격이 3,000만원 이상이거나 공동 활용이 가능한 장비는 취득 후30일 이내에 NTIS에 등록하여 관리
B52: =E52 -> 연구기자재비1 | D52: =IFERROR(IF(E52="","",1),"") -> 1 | E52: 연구기자재비1 | H52: =IFERROR(IF(OR(E52="",Q52=""),"",IF(AND(E52="연구기자재비1",Q52<100000000),0,IF(AND(E52="연구기자재비2",Q52<1000000),0,IF(AND(E52="연구기자재비2",Q52>=100000000),0,IF(AND(E52="연구기자재비3",Q52>=1000000),0,""))))),"") ->  | Q52: 100,000,000 | S52: 1 | T52: =IFERROR(IF(Q52*S52=0,"",Q52*S52),"") -> 100,000,000
B53: 연구기자재비2 | D53: =IFERROR(IF(E53="","",D52+1),"") -> 2 | E53: 연구기자재비2 | Q53: 10,000,000 | S53: 11 | T53: =IFERROR(IF(Q53*S53=0,"",Q53*S53),"") -> 110,000,000
B54: 연구기자재비3 | D54: =IFERROR(IF(E54="","",D53+1),"") -> 3 | E54: 연구기자재비3 | G54: 구입 | Q54: 500,000 | S54: 1 | T54: =IFERROR(IF(Q54*S54=0,"",Q54*S54),"") -> 500,000
B55: 시설비 | D55: =IFERROR(IF(E55="","",D54+1),"") -> 4 | E55: 시설비 | G55: 설치비 | Q55: 300,000 | S55: 1 | T55: 300,000
B56: 0 | D56: =IFERROR(IF(E56="","",D55+1),"") -> 
B57: 0
B58: 0
B59: 0
B60: 0
B61: 0
B63: 재료비 및 전산처리비 | D63: 2) 재료비 및 전산처리비 | T63: =IFERROR(SUM(T66:U165),0) -> 50,000 | Z63: 재료비 및 전산철비
D65: No. | E65: 세세목 | H65: 품명 | O65: 규격 | P65: 단위 | Q65: 단가(원) | S65: 수량 | T65: 합계 | V65: 비고 | AA65: ㅇ내구년수 1년 이하인 시약 재료구입비, 전산처리 및 관리비, S/W구입(범용성 S/W 제외) ㅇ상세 내역 명시 요망(내용/단가/수량/총액 등)
D66: =IFERROR(IF(E66="","",1),"") -> 1 | E66: 전산처리 및 관리비 | Q66: 50,000 | S66: 1 | T66: =IFERROR(IF(Q66*S66=0,"",Q66*S66),"") -> 50,000
D67: =IFERROR(IF(E67="","",D66+1),"") -> 2 | E67: 시약 재료구입비 | T67: =IFERROR(IF(Q67*S67=0,"",Q67*S67),"") -> 
D68: =IFERROR(IF(E68="","",D67+1),"") ->  | T68: =IFERROR(IF(Q68*S68=0,"",Q68*S68),"") -> 
D69: =IFERROR(IF(E69="","",D68+1),"") -> 
D70: =IFERROR(IF(E70="","",D69+1),"") -> 
D134: =IFERROR(IF(E134="","",D133+1),"") -> 
B167: 시제품제작비 | D167: 3) 시작품 제작비 | T167: =IFERROR(SUM(T170:U174),0) -> 111,111 | Z167: 시작품 제작비
D169: No. | E169: 구분 | F169: 품명 | J169: 관련 연구내용 | O169: 규격 | P169: 단위 | Q169: 단가(원) | S169: 수량 | T169: 합계 | V169: 비고 | AA169: ㅇ시제품, 시작품, 시험설비 제작 경비, ㅇ상세 내역 명시 요망(내용/단가/수량/총액 등)
D170: =IFERROR(IF(E170="","",1),"") -> 1 | E170: 내부 | Q170: 111,111 | S170: 1 | T170: =IFERROR(IF(Q170*S170=0,"",Q170*S170),"") -> 111,111
D171: =IFERROR(IF(E171="","",D170+1),"") ->  | T171: =IFERROR(IF(Q171*S171=0,"",Q171*S171),"") -> 
C176: 다. 연구활동비 | T176: =IFERROR(SUM(T178,T187,T198,T214,T228),0) -> 61,762,500
B178: 국외여비 | D178: 1) 국외여비 | T178: =IFERROR(SUM(U181:V185),0) -> 1,200,000 | Z178: 국외여비
D180: No. | E180: 국가 | G180: 방문기관 | J180: 기간 | M180: 출장목적 | O180: 직급 | Q180: 인원 | R180: 단가 | T180: 회 | U180: 합계 | W180: 비고 | AA180: ㅇ연구원의 국외 출장여비로 우리 원의 실 소요경비 ㅇ지역, 기간, 출장자, 방문기관, 출장목적 등 상세 기재함.
D181: =IFERROR(IF(E181="","",1),"") -> 1 | E181: 캐나다 | G181: C.T.O | J181: 2016.08.09~08.30 | M181: 학회참석 | Q181: 2 | R181: 1,200,000 | T181: 1 | U181: =IFERROR(IF(R181*T181=0,"",R181*T181),"") -> 1,200,000
D182: =IFERROR(IF(E182="","",D181+1),"") ->  | U182: =IFERROR(IF(R182*T182=0,"",R182*T182),"") -> 
U183: =IFERROR(IF(R183*T183=0,"",R183*T183),"") -> 
U184: =IFERROR(IF(R184*T184=0,"",R184*T184),"") -> 
U185: =IFERROR(IF(R185*T185=0,"",R185*T185),"") -> 
B187: 수용비 및 수수료 | D187: 2) 수용비 및 수수료 | T187: =IFERROR(SUM(T190:U196),0) -> 37,500,000 | Z187: 수용비 및 수수료
D189: No. | E189: 세세목 | G189: 사용내역 | P189: 단위 | Q189: 단가 | S189: 건수 | T189: 합계 | V189: 비고 | AA189: ㅇ과제와 직접 관련 있는 인쇄․복사․인화․슬라이드 제작비, 공공요금․제세공과금 및 수수료, 연구과제수행과 관련된 공고료 등 ㅇ상세 내역 명시 요망(내용/단가/수량/총액 등) ㅇ전기료는 스페이스, 인원 등에 따라 계산된 총액을 반영
D190: =IFERROR(IF(E190="","",1),"") -> 1 | E190: 전기료 | G190: 연구부서 실험실 월별 전기료 | T190: =IFERROR(IF('1.계상기준'!$S$10=1,VLOOKUP('3.연구비세부내역'!$E190,'1.계상기준'!$I$26:$Q$31,4,0),IF('1.계상기준'!$S$10=2,VLOOKUP('3.연구비세부내역'!$E190,'1.계상기준'!$I$26:$Q$31,7,0),"")),"") -> 37,500,000
D191: =IFERROR(IF(E191="","",D190+1),"") -> 2 | E191: 인쇄비 | T191: =IFERROR(IF(Q191*S191=0,"",Q191*S191),"") -> 
D192: =IFERROR(IF(E192="","",D191+1),"") -> 3 | E192: 복사비 | T192: =IFERROR(IF(Q192*S192=0,"",Q192*S192),"") -> 
D193: =IFERROR(IF(E193="","",D192+1),"") -> 4 | E193: 인화비
D194: =IFERROR(IF(E194="","",D193+1),"") -> 5 | E194: 공공요금
D195: 6 | E195: 수수료
D196: 7 | E196: 제세공과금
B198: 기술정보활동비 | D198: 3) 기술정보활동비 | T198: =IFERROR(SUM(T201:U207,U210:V212),0) -> 16,350,000 | Z198: 기술정보활동비
D200: No. | E200: 세세목 | H200: 사용내역 | P200: 단위 | Q200: 단가 | S200: 건수 | T200: 합계 | V200: 비고 | AA200: ㅇ전문가 활용, 국내․외 훈련, 기술정보수집비, 도서 등 문헌구입비, 회의장 사용료, 세미나개최비, 학회,세미나 참가비, 원고료, 통역료, 구독료, 기술도입비 등으로 우리 원이 정한 기준에 따른 경비 또는 실소요경비 ㅇ논문게재료 및 논문심사비 ㅇ도서비는 수요논문의 활용계획에 따라 계산된 총액을 반영
D201: =IFERROR(IF(E201="","",1),"") -> 1 | E201: 도서비 | T201: =IFERROR(IF('1.계상기준'!$S$10=1,VLOOKUP('3.연구비세부내역'!$E201,'1.계상기준'!$I$26:$Q$31,4,0),IF('1.계상기준'!$S$10=2,VLOOKUP('3.연구비세부내역'!$E201,'1.계상기준'!$I$26:$Q$31,7,0),"")),"") -> 16,350,000
D202: =IFERROR(IF(E202="","",D201+1),"") -> 2 | E202: 세미나개최비 | T202: =IFERROR(IF(Q202*S202=0,"",Q202*S202),"") -> 
D203: 3 | E203: 학회/세미나 참가비
D204: 4 | E204: 도서/문헌구입비
D205: 5 | E205: 원고료 등
D206: 6 | E206: 기술정보수집비
D207: 7 | E207: 논문게재료 및 심사비
D209: No. | E209: 세세목 | I209: 훈련기관 | L209: 기간 | O209: 훈련목적 | Q209: 직급 | S209: 인원 | T209: 회 | U209: 합계 | W209: 비고
D210: =IFERROR(IF(E210="","",1),"") -> 1 | E210: 국내외 훈련비 | L210: 2016.08.09~08.30
D211: =IFERROR(IF(E211="","",D210+1),"") -> 2 | E211: 과학기술자 유치 파견지원금
D212: 3 | E212: 기술도입비
B214: 연구개발서비스 활용비 등 | D214: 4) 연구개발서비스 활용비 등 | T214: =IFERROR(SUM(T217:U226),0) -> 1,212,000 | Z214: 연구개발서비스 활동비 등
D216: No. | E216: 세세목 | G216: 구분 | J216: 산출근거 | Q216: 단가 | S216: 회 | T216: 합계 | V216: 비고 | AA216: ㅇ시험, 분석, 검사, 임상시험, 기술정보수집, 특허정보조사, 정보 DB 사용료 등 ㅇ설문조사비
D217: =IFERROR(IF(E217="","",1),"") ->  | G217: 시험/분석/검사 | Q217: 1,212,000 | S217: 1 | T217: =IFERROR(IF(Q217*S217=0,"",Q217*S217),"") -> 1,212,000
D218: =IFERROR(IF(E218="","",D217+1),"") ->  | T218: =IFERROR(IF(Q218*S218=0,"",Q218*S218),"") -> 
D219: =IFERROR(IF(E219="","",D218+1),"") ->  | T219: =IFERROR(IF(Q219*S219=0,"",Q219*S219),"") -> 
D220: =IFERROR(IF(E220="","",D219+1),"") -> 
D221: =IFERROR(IF(E221="","",D220+1),"") -> 
B228: 특허출원 및 등록비 | D228: 5) 특허출원 및 등록비 | T228: =IFERROR(SUM(T231:U235),0) -> 5,500,500 | Z228: 특허출원 및 등록비
D230: No. | E230: 세세목 | G230: 구분 | K230: 산출근거 | Q230: 단가 | S230: 회 | T230: 합계 | V230: 비고 | AA230: ㅇ 국내경비 : 2,700,000원 ㅇ 국외경비 : 13,000,000원
D231: =IFERROR(IF(E231="","",1),"") ->  | Q231: 5,500,500 | S231: 1 | T231: =IFERROR(IF(Q231*S231=0,"",Q231*S231),"") -> 5,500,500
D232: =IFERROR(IF(E232="","",D231+1),"") ->  | T232: =IFERROR(IF(Q232*S232=0,"",Q232*S232),"") -> 
C237: 라. 연구과제추진비 | T237: =IFERROR(SUM(T239,T248,T257),0) -> 1,236,583
B239: 국내여비 | D239: 1) 국내여비 | T239: =IFERROR(SUM(U242:V246),0) -> 88,880 | Z239: 국내여비
D241: No. | E241: 지역 | G241: 방문기관 | J241: 기간 | M241: 출장목적 | O241: 직급 | Q241: 인원 | R241: 단가 | T241: 회 | U241: 합계 | W241: 비고 | AA241: ㅇ연구원의 국내 출장여비 및 시내교통비로 우리 원의 실소요경비 ㅇ지역, 기간, 출장자, 방문기관, 출장목적 등 상세기재함.
D242: =IFERROR(IF(E242="","",1),"") ->  | J242: 2016.08.09~08.30 | R242: 88,880 | T242: 1 | U242: =IFERROR(IF(R242*T242=0,"",R242*T242),"") -> 88,880
D243: =IFERROR(IF(E243="","",D242+1),"") ->  | U243: =IFERROR(IF(R243*T243=0,"",R243*T243),"") -> 
B248: 연구환경유지비 | D248: 2) 연구환경유지비 | T248: =IFERROR(SUM(T251:U255),0) -> 272,703 | Z248: 연구환경유지비
D250: No. | E250: 품명 | O250: 규격 | P250: 단위 | Q250: 단가 | S250: 수량 | T250: 합계 | V250: 비고 | AA250: ㅇ사무용품비, 연구환경유지를 위한 기기·비품의 구입·유지 비용 등 ㅇ상세 내역 명시 요망(내용/단가/수량/총액 등)
D251: =IFERROR(IF(E251="","",1),"") ->  | Q251: 90,901 | S251: 3 | T251: =IFERROR(IF(Q251*S251=0,"",Q251*S251),"") -> 272,703
D252: =IFERROR(IF(E252="","",D251+1),"") ->  | T252: =IFERROR(IF(Q252*S252=0,"",Q252*S252),"") -> 
B257: 회의비 | D257: 3) 회의비 | T257: =IFERROR(SUM(T260:U260),0) -> 875,000 | Z257: 회의비
D259: No. | E259: 항목 | G259: 산출근거 | Q259: 단가 | S259: 회 | T259: 합계 | V259: 비고 | AA259: ㅇ회의비는 해당 연구개발과제 수행과 관련된 사항에 대해 계상(연구활동비의 회의장 사용료, 전문가활용비는 제외) ㅇ회의비는 직접비 3%이내
D260: =IFERROR(IF(E260="","",1),"") -> 1 | E260: 회의비 | Q260: 175,000 | S260: 5 | T260: =IFERROR(IF(Q260*S260=0,"",Q260*S260),"") -> 875,000
B262: 연구수당 | C262: 마. 연구수당 | T262: =IFERROR(SUM(T265:U265),0) -> 45,050,000
D264: No. | E264: 항목 | H264: 산출근거 | T264: 합계 | V264: 비고
D265: =IFERROR(IF(E265="","",1),"") -> 1 | E265: 연구수당 | T265: =IFERROR(IF('1.계상기준'!$S$10=1,VLOOKUP('3.연구비세부내역'!$E265,'1.계상기준'!$I$26:$Q$31,4,0),IF('1.계상기준'!$S$10=2,VLOOKUP('3.연구비세부내역'!$E265,'1.계상기준'!$I$26:$Q$31,7,0),"")),"") -> 45,050,000
B267: 지식재산권 관리비 | C267: 바. 지식재산권 관리비 | T267: =IFERROR(SUM(T270:U270),0) -> 8,500,000
D269: No. | E269: 항목 | H269: 산출근거 | T269: 합계 | V269: 비고
D270: =IFERROR(IF(E270="","",1),"") -> 1 | E270: 지식재산권 관리비 | T270: =IFERROR(IF('1.계상기준'!$S$10=1,VLOOKUP('3.연구비세부내역'!$E270,'1.계상기준'!$I$26:$Q$31,4,0),IF('1.계상기준'!$S$10=2,VLOOKUP('3.연구비세부내역'!$E270,'1.계상기준'!$I$26:$Q$31,7,0),"")),"") -> 8,500,000
B272: 과학문화활동비 | C272: 사. 과학문화활동비 | T272: =IFERROR(SUM(T275:U275),0) -> 5,750,000
D274: No. | E274: 항목 | H274: 산출근거 | T274: 합계 | V274: 비고
D275: =IFERROR(IF(E275="","",1),"") -> 1 | E275: 과학문화활동비 | T275: =IFERROR(IF('1.계상기준'!$S$10=1,VLOOKUP('3.연구비세부내역'!$E275,'1.계상기준'!$I$26:$Q$31,4,0),IF('1.계상기준'!$S$10=2,VLOOKUP('3.연구비세부내역'!$E275,'1.계상기준'!$I$26:$Q$31,7,0),"")),"") -> 5,750,000
B277: 연구실안전관리비 | C277: 아. 연구실안전관리비 | T277: =IFERROR(SUM(T280:U280),0) -> 6,250,000
D279: No. | E279: 항목 | H279: 산출근거 | T279: 합계 | V279: 비고
D280: =IFERROR(IF(E280="","",1),"") -> 1 | E280: 연구실안전관리비 | T280: =IFERROR(IF('1.계상기준'!$S$10=1,VLOOKUP('3.연구비세부내역'!$E280,'1.계상기준'!$I$26:$Q$31,4,0),IF('1.계상기준'!$S$10=2,VLOOKUP('3.연구비세부내역'!$E280,'1.계상기준'!$I$26:$Q$31,7,0),"")),"") -> 6,250,000
B282: 위탁연구개발비 | C282: 자. 위탁연구개발비 | T282: =IFERROR(SUM(T285:U289),0) -> 68,960,000 | Z282: 위탁연구개발비
D284: No. | E284: 위탁과제명 | N284: 위탁연구기관 | R284: 위탁연구책임자 | T284: 위탁연구비 | V284: 비고 | AA284: ㅇ연구의 일부를 외부기관에게 용역을 주어 위탁 수행하는데 소요되는 경비 ㅇ위탁기관, 과제명, 목적, 기간, 연구비, 기타 필요한 사항 상세 기재요망 ㅇ위탁연구비는 직접비의 20%이내 계상
D285: =IFERROR(IF(E285="","",1),"") -> 1 | E285: R***** T***** of ****** H***** | N285: T***** Univ. | R285: P***** | T285: 18,560,000
D286: =IFERROR(IF(E286="","",D285+1),"") -> 2 | E286: R***** | N286: S***** Univ. | R286: S***** | T286: 25,000,000
D287: =IFERROR(IF(E287="","",D286+1),"") -> 3 | E287: 메******* 개발 | N287: 경***** | R287: 김***** | T287: 8,000,000
D288: 4 | E288: 고****** | N288: 중***** | R288: 이***** | T288: 5,400,000
D289: 5 | E289: 고********* | N289: 광***** | R289: 나***** | T289: 12,000,000
B291: 2. 간접비 | T291: 8,567,000

Sheet 4.연구비총괄표_1차
B2: 5. 연구비 소요명세서
C4: 가. 총괄표 | M4: (단위 : 원)
C6: 비목 | D6: 세목 | G6: 1차 년도 | H6: 비율 | J6: 2차 년도 | K6: 비율 | M6: 3차 년도 | N6: 비율
C9: 직접비 | G9: =IFERROR(SUM(G11,G21,G33,G45,G53,G55,G57,G59,G61),0) -> 825,748,874 | H9: =IFERROR(G9/G$68,"") -> 99.0% | J9: =IFERROR(SUM(J11,J21,J33,J45,J53,J55,J57,J59,J61),0) -> 0 | K9: =IFERROR(J9/J$68,"") ->  | M9: =IFERROR(SUM(M11,M21,M33,M45,M53,M55,M57,M59,M61),0) -> 0 | N9: =IFERROR(M9/M$68,"") -> 
D11: 인건비 | G11: =SUM(G13:G19) -> 417,278,680 | H11: =IFERROR(G11/G$68,"") -> 50.0% | J11: =SUM(J13:J19) -> 0 | K11: =IFERROR(J11/J$68,"") ->  | M11: =SUM(M13:M19) -> 0 | N11: =IFERROR(M11/M$68,"") -> 
D13: 내부정직원 | E13: 내부인건비 - 정직원 | G13: =IFERROR(SUMIF('3.연구비세부내역'!$B:$B,'4.연구비총괄표_1차'!D13,'3.연구비세부내역'!$T:$T),0) -> 207,121,700 | H13: =IFERROR(G13/G$68,"") -> 24.8% | K13: =IFERROR(J13/J$68,"") ->  | N13: =IFERROR(M13/M$68,"") -> 
D15: 내부무기계약직 | E15: 내부인건비 - 무기계약직 | G15: =IFERROR(SUMIF('3.연구비세부내역'!$B:$B,'4.연구비총괄표_1차'!D15,'3.연구비세부내역'!$T:$T),0) -> 21,480,220 | H15: =IFERROR(G15/G$68,"") -> 2.6% | K15: =IFERROR(J15/J$68,"") ->  | N15: =IFERROR(M15/M$68,"") -> 
D17: 외부 | E17: 외부인건비 | G17: =IFERROR(SUMIF('3.연구비세부내역'!$B:$B,'4.연구비총괄표_1차'!D17,'3.연구비세부내역'!$T:$T),0) -> 142,176,760 | H17: =IFERROR(G17/G$68,"") -> 17.0% | K17: =IFERROR(J17/J$68,"") ->  | N17: =IFERROR(M17/M$68,"") -> 
D19: 학생 | E19: 학생인건비 | G19: =IFERROR(SUMIF('3.연구비세부내역'!$B:$B,'4.연구비총괄표_1차'!D19,'3.연구비세부내역'!$T:$T),0) -> 46,500,000 | H19: =IFERROR(G19/G$68,"") -> 5.6% | K19: =IFERROR(J19/J$68,"") ->  | N19: =IFERROR(M19/M$68,"") -> 
D21: 연구장비재료비 | G21: =SUM(G23:G31) -> 210,961,111 | H21: =IFERROR(G21/G$68,"") -> 25.3% | J21: =SUM(J23:J31) -> 0 | K21: =IFERROR(J21/J$68,"") ->  | M21: =SUM(M23:M31) -> 0 | N21: =IFERROR(M21/M$68,"") -> 
D23: 연구기자재비1 | E23: 연구기자재1 | G23: =IFERROR(SUMIF('3.연구비세부내역'!$B:$B,'4.연구비총괄표_1차'!D23,'3.연구비세부내역'!$T:$T),0) -> 100,000,000 | H23: =IFERROR(G23/G$68,"") -> 12.0% | K23: =IFERROR(J23/J$68,"") ->  | N23: =IFERROR(M23/M$68,"") -> 
D25: 연구기자재비2 | E25: 연구기자재2 | G25: =IFERROR(SUMIF('3.연구비세부내역'!$B:$B,'4.연구비총괄표_1차'!D25,'3.연구비세부내역'!$T:$T),0) -> 110,000,000 | H25: =IFERROR(G25/G$68,"") -> 13.2% | K25: =IFERROR(J25/J$68,"") ->  | N25: =IFERROR(M25/M$68,"") -> 
C27: 시설비 | D27: 연구기자재비3 | E27: 연구기자재3 및 시설비 | G27: =IFERROR(SUMIF('3.연구비세부내역'!$B:$B,'4.연구비총괄표_1차'!C27,'3.연구비세부내역'!$T:$T)+SUMIF('3.연구비세부내역'!$B:$B,'4.연구비총괄표_1차'!D27,'3.연구비세부내역'!$T:$T),0) -> 800,000 | H27: =IFERROR(G27/G$68,"") -> 0.1% | K27: =IFERROR(J27/J$68,"") ->  | N27: =IFERROR(M27/M$68,"") -> 
D29: 재료비 및 전산처리비 | E29: 재료비 및 전산처리비 | G29: =IFERROR(SUMIF('3.연구비세부내역'!$B:$B,'4.연구비총괄표_1차'!D29,'3.연구비세부내역'!$T:$T),0) -> 50,000 | H29: =IFERROR(G29/G$68,"") -> 0.0% | K29: =IFERROR(J29/J$68,"") ->  | N29: =IFERROR(M29/M$68,"") -> 
D31: 시제품제작비 | E31: 시제품제작비 | G31: =IFERROR(SUMIF('3.연구비세부내역'!$B:$B,'4.연구비총괄표_1차'!D31,'3.연구비세부내역'!$T:$T),0) -> 111,111 | H31: =IFERROR(G31/G$68,"") -> 0.0% | K31: =IFERROR(J31/J$68,"") ->  | N31: =IFERROR(M31/M$68,"") -> 
D33: 연구활동비 | G33: =SUM(G35:G43) -> 61,762,500 | H33: =IFERROR(G33/G$68,"") -> 7.4% | J33: =SUM(J35:J43) -> 0 | K33: =IFERROR(J33/J$68,"") ->  | M33: =SUM(M35:M43) -> 0 | N33: =IFERROR(M33/M$68,"") -> 
D35: 국외여비 | E35: 국외여비 | G35: =IFERROR(SUMIF('3.연구비세부내역'!$B:$B,'4.연구비총괄표_1차'!D35,'3.연구비세부내역'!$T:$T),0) -> 1,200,000 | H35: =IFERROR(G35/G$68,"") -> 0.1% | K35: =IFERROR(J35/J$68,"") ->  | N35: =IFERROR(M35/M$68,"") -> 
D37: 수용비 및 수수료 | E37: 수용비 및 수수료 | G37: =IFERROR(SUMIF('3.연구비세부내역'!$B:$B,'4.연구비총괄표_1차'!D37,'3.연구비세부내역'!$T:$T),0) -> 37,500,000 | H37: =IFERROR(G37/G$68,"") -> 4.5% | K37: =IFERROR(J37/J$68,"") ->  | N37: =IFERROR(M37/M$68,"") -> 
D39: 기술정보활동비 | E39: 기술정보활동비 | G39: =IFERROR(SUMIF('3.연구비세부내역'!$B:$B,'4.연구비총괄표_1차'!D39,'3.연구비세부내역'!$T:$T),0) -> 16,350,000 | H39: =IFERROR(G39/G$68,"") -> 2.0% | K39: =IFERROR(J39/J$68,"") ->  | N39: =IFERROR(M39/M$68,"") -> 
D41: 연구개발서비스 활용비 등 | E41: 연구개발서비스 활용비 등 | G41: =IFERROR(SUMIF('3.연구비세부내역'!$B:$B,'4.연구비총괄표_1차'!D41,'3.연구비세부내역'!$T:$T),0) -> 1,212,000 | H41: =IFERROR(G41/G$68,"") -> 0.1% | K41: =IFERROR(J41/J$68,"") ->  | N41: =IFERROR(M41/M$68,"") -> 
D43: 특허출원 및 등록비 | E43: 특허출원 및 등록비 | G43: =IFERROR(SUMIF('3.연구비세부내역'!$B:$B,'4.연구비총괄표_1차'!D43,'3.연구비세부내역'!$T:$T),0) -> 5,500,500 | H43: =IFERROR(G43/G$68,"") -> 0.7% | K43: =IFERROR(J43/J$68,"") ->  | N43: =IFERROR(M43/M$68,"") -> 
D45: 연구과제 추진비 | G45: =SUM(G47:G51) -> 1,236,583 | H45: =IFERROR(G45/G$68,"") -> 0.1% | J45: =SUM(J47:J51) -> 0 | K45: =IFERROR(J45/J$68,"") ->  | M45: =SUM(M47:M51) -> 0 | N45: =IFERROR(M45/M$68,"") -> 
D47: 국내여비 | E47: 국내여비 | G47: =IFERROR(SUMIF('3.연구비세부내역'!$B:$B,'4.연구비총괄표_1차'!D47,'3.연구비세부내역'!$T:$T),0) -> 88,880 | H47: =IFERROR(G47/G$68,"") -> 0.0% | K47: =IFERROR(J47/J$68,"") ->  | N47: =IFERROR(M47/M$68,"") -> 
D49: 연구환경유지비 | E49: 연구환경유지비 | G49: =IFERROR(SUMIF('3.연구비세부내역'!$B:$B,'4.연구비총괄표_1차'!D49,'3.연구비세부내역'!$T:$T),0) -> 272,703 | H49: =IFERROR(G49/G$68,"") -> 0.0% | K49: =IFERROR(J49/J$68,"") ->  | N49: =IFERROR(M49/M$68,"") -> 
D51: 회의비 | E51: 회의비 | G51: =IFERROR(SUMIF('3.연구비세부내역'!$B:$B,'4.연구비총괄표_1차'!D51,'3.연구비세부내역'!$T:$T),0) -> 875,000 | H51: =IFERROR(G51/G$68,"") -> 0.1% | K51: =IFERROR(J51/J$68,"") ->  | N51: =IFERROR(M51/M$68,"") -> 
D53: 연구수당 | G53: =IFERROR(SUMIF('3.연구비세부내역'!$B:$B,'4.연구비총괄표_1차'!D53,'3.연구비세부내역'!$T:$T),0) -> 45,050,000 | H53: =IFERROR(G53/G$68,"") -> 5.4% | K53: =IFERROR(J53/J$68,"") ->  | N53: =IFERROR(M53/M$68,"") -> 
D55: 지식재산권 관리비 | G55: =IFERROR(SUMIF('3.연구비세부내역'!$B:$B,'4.연구비총괄표_1차'!D55,'3.연구비세부내역'!$T:$T),0) -> 8,500,000 | H55: =IFERROR(G55/G$68,"") -> 1.0% | K55: =IFERROR(J55/J$68,"") ->  | N55: =IFERROR(M55/M$68,"") -> 
D57: 과학문화활동비 | G57: =IFERROR(SUMIF('3.연구비세부내역'!$B:$B,'4.연구비총괄표_1차'!D57,'3.연구비세부내역'!$T:$T),0) -> 5,750,000 | H57: =IFERROR(G57/G$68,"") -> 0.7% | K57: =IFERROR(J57/J$68,"") ->  | N57: =IFERROR(M57/M$68,"") -> 
D59: 연구실안전관리비 | G59: =IFERROR(SUMIF('3.연구비세부내역'!$B:$B,'4.연구비총괄표_1차'!D59,'3.연구비세부내역'!$T:$T),0) -> 6,250,000 | H59: =IFERROR(G59/G$68,"") -> 0.7% | K59: =IFERROR(J59/J$68,"") ->  | N59: =IFERROR(M59/M$68,"") -> 
D61: 위탁연구개발비 | G61: =IFERROR(SUMIF('3.연구비세부내역'!$B:$B,'4.연구비총괄표_1차'!D61,'3.연구비세부내역'!$T:$T),0) -> 68,960,000 | H61: =IFERROR(G61/G$68,"") -> 8.3% | K61: =IFERROR(J61/J$68,"") ->  | N61: =IFERROR(M61/M$68,"") -> 
C63: 간접비 | G63: ='3.연구비세부내역'!T291 -> 8,567,000 | H63: =IFERROR(G63/G$68,"") -> 1.0% | K63: =IFERROR(J63/J$68,"") ->  | N63: =IFERROR(M63/M$68,"") -> 
C66: 총계1 (연구기자재 1, 2 제외) | G66: =IFERROR(SUM(G9,G63)-SUM(G23,G25),0) -> 624,315,874 | J66: =IFERROR(SUM(J9,J63)-SUM(J23,J25),0) -> 0 | M66: =IFERROR(SUM(M9,M63)-SUM(M23,M25),0) -> 0
C68: 총계1 (연구기자재 1, 2 포함) | G68: =IFERROR(SUM(G9,G63),0) -> 834,315,874 | J68: =IFERROR(SUM(J9,J63),0) -> 0 | M68: =IFERROR(SUM(M9,M63),0) -> 0

Sheet 5.계획서표지_1차
B2: 기관고유사업 연차실적 계획서 (계속과제용)
B4: 사업구분 | F4: 기관목적사업 | P4: 주요임무형 | R4: 일반과제
B6: 대과제(단위사업)명 | F6: 미래원천연구사업 | R6: 연구책임자
B8: 종과제명 | F8: 차세대 ***에너지 원천기술 개발 | R8: 연구책임자
B10: (세부)과제명 | F10: 한글) | G10: 고온****** 전기화학적 ****** 개발 | R10: 연구책임자
F11: 영문)
B13: 중점연구영역 | F13: 분야명 : 에너지환경 원천기술 개발 | T13: 해당 안됨
B15: 세부성과목표/지표 | F15: 세부성과목표 | M15: 성과지표 | T15: 해당 안됨
B17: 협동연구 형태 | F17: 단독연구 | I17: 산업계 학계 연구계 지역 국제공동 남북한
B19: 연구성격 | F19: 연구단계 | I19: 기초 | K19: 응용 | M19: 개발 | O19: 기획 | Q19: 기타 :
F20: 기술성격 | I20: Seed연구 | L20: 원천기술 | O20: 산업계 현안기술 | S20: 첨단 추격기술
B22: 총괄연구책임자 | H22: 부서 | I22: 자연에너지연구센터 | P22: 전화번호
B24: 참여인원 | F24: =IFERROR("총 "&COUNTIF('3.연구비세부내역'!$E$16:$E$45,"내부")+COUNTIF('3.연구비세부내역'!$E$16:$E$45,"외부")+COUNTIF('3.연구비세부내역'!$E$16:$E$45,"학생")&"명 "&"(내부 : "&COUNTIF('3.연구비세부내역'!$E$16:$E$45,"내부")&"명, 외부 : "&COUNTIF('3.연구비세부내역'!$E$16:$E$45,"외부")+COUNTIF('3.연구비세부내역'!$E$16:$E$45,"학생")&"명)",0) -> 총 26명 (내부 : 8명, 외부 : 18명)
B26: 총 연구기간
B28: 연구비 | F28: 연차 | H28: 기간 | M28: 내부 출연금 | P28: 외부 출연금 | S28: 합계
F29: 1차 년도 | H29: =IFERROR(IF('1.계상기준'!E7="","",'1.계상기준'!E7),"") -> 2016-01-01 | J29: ~ | K29: =IFERROR(IF('1.계상기준'!H7="","",'1.계상기준'!H7),"") -> 2016-12-31 | M29: =IFERROR(IF('1.계상기준'!L7=1,'4.연구비총괄표_1차'!G68,""),"") -> 834,315,874 | S29: =IFERROR(SUM(M29:R29),"") -> 834,315,874
F30: 2차 년도 | H30: 2011-01-12 | J30: ~ | K30: 2011-01-12 | M30: ='4.연구비총괄표_1차'!J68 -> 0 | S30: =IFERROR(SUM(M30:R30),"") -> 0
F31: 3차 년도 | H31: 2011-01-12 | J31: ~ | K31: 2011-01-12 | M31: ='4.연구비총괄표_1차'!M68 -> 0 | S31: =IFERROR(SUM(M31:R31),"") -> 0
F32: 총 계 | M32: =IFERROR(SUM(M29:O31),"") -> 834,315,874 | P32: =IFERROR(SUM(P29:R31),"") -> 0 | S32: =IFERROR(SUM(S29:U31),"") -> 834,315,874
B34: 산학연지역 협동 | F34: 협동기관명 | H34: 중소기업 대기업 | P34: 분담연구비
F35: 과제명 | R35: 연구책입자
B37: 국제공동(남북한) 연구 협력 | F37: 국가 및 기관명 | P37: 분담연구비
F38: 협력/연구내용 | R38: 연구책입자
B40: 위탁 연구 | F40: 과제명 | N40: 위탁연구비 | Q40: 위탁연구기관 | T40: 연구책임자
F41: =IFERROR(IF('3.연구비세부내역'!E285="","",'3.연구비세부내역'!E285),"") -> R***** T***** of ****** H***** | N41: =IFERROR(IF('3.연구비세부내역'!T285="","",'3.연구비세부내역'!T285),"") -> 18,560,000 | Q41: =IFERROR(IF('3.연구비세부내역'!N285="","",'3.연구비세부내역'!N285),"") -> T***** Univ. | T41: =IFERROR(IF('3.연구비세부내역'!R285="","",'3.연구비세부내역'!R285),"") -> P*****
F42: =IFERROR(IF('3.연구비세부내역'!E286="","",'3.연구비세부내역'!E286),"") -> R***** | N42: =IFERROR(IF('3.연구비세부내역'!T286="","",'3.연구비세부내역'!T286),"") -> 25,000,000 | Q42: =IFERROR(IF('3.연구비세부내역'!N286="","",'3.연구비세부내역'!N286),"") -> S***** Univ. | T42: =IFERROR(IF('3.연구비세부내역'!R286="","",'3.연구비세부내역'!R286),"") -> S*****
F43: =IFERROR(IF('3.연구비세부내역'!E287="","",'3.연구비세부내역'!E287),"") -> 메******* 개발 | N43: =IFERROR(IF('3.연구비세부내역'!T287="","",'3.연구비세부내역'!T287),"") -> 8,000,000 | Q43: =IFERROR(IF('3.연구비세부내역'!N287="","",'3.연구비세부내역'!N287),"") -> 경***** | T43: =IFERROR(IF('3.연구비세부내역'!R287="","",'3.연구비세부내역'!R287),"") -> 김*****
F44: =IFERROR(IF('3.연구비세부내역'!E288="","",'3.연구비세부내역'!E288),"") -> 고****** | N44: =IFERROR(IF('3.연구비세부내역'!T288="","",'3.연구비세부내역'!T288),"") -> 5,400,000 | Q44: =IFERROR(IF('3.연구비세부내역'!N288="","",'3.연구비세부내역'!N288),"") -> 중***** | T44: =IFERROR(IF('3.연구비세부내역'!R288="","",'3.연구비세부내역'!R288),"") -> 이*****
F45: =IFERROR(IF('3.연구비세부내역'!E289="","",'3.연구비세부내역'!E289),"") -> 고********* | N45: =IFERROR(IF('3.연구비세부내역'!T289="","",'3.연구비세부내역'!T289),"") -> 12,000,000 | Q45: =IFERROR(IF('3.연구비세부내역'!N289="","",'3.연구비세부내역'!N289),"") -> 광***** | T45: =IFERROR(IF('3.연구비세부내역'!R289="","",'3.연구비세부내역'!R289),"") -> 나*****
B48: 관련 규정을 준수하면서 본 기관고유사업을 성실히 수행하고자 기관고유사업 연구 계획서를 제출합니다.
K50: 년 | M50: 월 | O50: 일
I52: 연구책임자 : | O52: 인
B54: H********* 원장 귀하

Sheet 4.연구비총괄표_2차 (hidden)
B2: 5. 연구비 소요명세서
C4: 가. 총괄표 | M4: (단위 : 원)
C6: 비목 | D6: 세목 | G6: 1차 년도 | H6: 비율 | J6: 2차 년도 | K6: 비율 | M6: 3차 년도 | N6: 비율
C9: 직접비 | G9: =IFERROR(SUM(G11,G21,G33,G45,G53,G55,G57,G59,G61),0) -> 0 | H9: =IFERROR(G9/G$68,"") ->  | J9: =IFERROR(SUM(J11,J21,J33,J45,J53,J55,J57,J59,J61),0) -> 825,748,874 | K9: =IFERROR(J9/J$68,"") -> 99.0% | M9: =IFERROR(SUM(M11,M21,M33,M45,M53,M55,M57,M59,M61),0) -> 0 | N9: =IFERROR(M9/M$68,"") -> 
D11: 인건비 | G11: =SUM(G13:G19) -> 0 | H11: =IFERROR(G11/G$68,"") ->  | J11: =SUM(J13:J19) -> 417,278,680 | K11: =IFERROR(J11/J$68,"") -> 50.0% | M11: =SUM(M13:M19) -> 0 | N11: =IFERROR(M11/M$68,"") -> 
D13: 내부정직원 | E13: 내부인건비 - 정직원 | H13: =IFERROR(G13/G$68,"") ->  | J13: =IFERROR(SUMIF('3.연구비세부내역'!$B:$B,'4.연구비총괄표_2차'!D13,'3.연구비세부내역'!$T:$T),0) -> 207,121,700 | K13: =IFERROR(J13/J$68,"") -> 24.8% | N13: =IFERROR(M13/M$68,"") -> 
D15: 내부무기계약직 | E15: 내부인건비 - 무기계약직 | H15: =IFERROR(G15/G$68,"") ->  | J15: =IFERROR(SUMIF('3.연구비세부내역'!$B:$B,'4.연구비총괄표_2차'!D15,'3.연구비세부내역'!$T:$T),0) -> 21,480,220 | K15: =J15/J$68 -> 2.6% | N15: =IFERROR(M15/M$68,"") -> 
D17: 외부 | E17: 외부인건비 | H17: =IFERROR(G17/G$68,"") ->  | J17: =IFERROR(SUMIF('3.연구비세부내역'!$B:$B,'4.연구비총괄표_2차'!D17,'3.연구비세부내역'!$T:$T),0) -> 142,176,760 | K17: =J17/J$68 -> 17.0% | N17: =IFERROR(M17/M$68,"") -> 
D19: 학생 | E19: 학생인건비 | H19: =IFERROR(G19/G$68,"") ->  | J19: =IFERROR(SUMIF('3.연구비세부내역'!$B:$B,'4.연구비총괄표_2차'!D19,'3.연구비세부내역'!$T:$T),0) -> 46,500,000 | K19: =J19/J$68 -> 5.6% | N19: =IFERROR(M19/M$68,"") -> 
D21: 연구장비재료비 | G21: =SUM(G23:G31) -> 0 | H21: =IFERROR(G21/G$68,"") ->  | J21: =SUM(J23:J31) -> 210,961,111 | K21: =J21/J$68 -> 25.3% | M21: =SUM(M23:M31) -> 0 | N21: =IFERROR(M21/M$68,"") -> 
D23: 연구기자재비1 | E23: 연구기자재1 | H23: =IFERROR(G23/G$68,"") ->  | J23: =IFERROR(SUMIF('3.연구비세부내역'!$B:$B,'4.연구비총괄표_2차'!D23,'3.연구비세부내역'!$T:$T),0) -> 100,000,000 | K23: =J23/J$68 -> 12.0% | N23: =IFERROR(M23/M$68,"") -> 
D25: 연구기자재비2 | E25: 연구기자재2 | H25: =IFERROR(G25/G$68,"") ->  | J25: =IFERROR(SUMIF('3.연구비세부내역'!$B:$B,'4.연구비총괄표_2차'!D25,'3.연구비세부내역'!$T:$T),0) -> 110,000,000 | K25: =J25/J$68 -> 13.2% | N25: =IFERROR(M25/M$68,"") -> 
C27: 시설비 | D27: 연구기자재비3 | E27: 연구기자재3 및 시설비 | H27: =IFERROR(G27/G$68,"") ->  | J27: =IFERROR(SUMIF('3.연구비세부내역'!$B:$B,'4.연구비총괄표_2차'!C27,'3.연구비세부내역'!$T:$T)+SUMIF('3.연구비세부내역'!$B:$B,'4.연구비총괄표_2차'!D27,'3.연구비세부내역'!$T:$T),0) -> 800,000 | K27: =J27/J$68 -> 0.1% | N27: =IFERROR(M27/M$68,"") -> 
D29: 재료비 및 전산처리비 | E29: 재료비 및 전산처리비 | H29: =IFERROR(G29/G$68,"") ->  | J29: =IFERROR(SUMIF('3.연구비세부내역'!$B:$B,'4.연구비총괄표_2차'!D29,'3.연구비세부내역'!$T:$T),0) -> 50,000 | K29: =J29/J$68 -> 0.0% | N29: =IFERROR(M29/M$68,"") -> 
D31: 시제품제작비 | E31: 시제품제작비 | H31: =IFERROR(G31/G$68,"") ->  | J31: =IFERROR(SUMIF('3.연구비세부내역'!$B:$B,'4.연구비총괄표_2차'!D31,'3.연구비세부내역'!$T:$T),0) -> 111,111 | K31: =J31/J$68 -> 0.0% | N31: =IFERROR(M31/M$68,"") -> 
D33: 연구활동비 | G33: =SUM(G35:G43) -> 0 | H33: =IFERROR(G33/G$68,"") ->  | J33: =SUM(J35:J43) -> 61,762,500 | K33: =J33/J$68 -> 7.4% | M33: =SUM(M35:M43) -> 0 | N33: =IFERROR(M33/M$68,"") -> 
D35: 국외여비 | E35: 국외여비 | H35: =IFERROR(G35/G$68,"") ->  | J35: =IFERROR(SUMIF('3.연구비세부내역'!$B:$B,'4.연구비총괄표_2차'!D35,'3.연구비세부내역'!$T:$T),0) -> 1,200,000 | K35: =J35/J$68 -> 0.1% | N35: =IFERROR(M35/M$68,"") -> 
D37: 수용비 및 수수료 | E37: 수용비 및 수수료 | H37: =IFERROR(G37/G$68,"") ->  | J37: =IFERROR(SUMIF('3.연구비세부내역'!$B:$B,'4.연구비총괄표_2차'!D37,'3.연구비세부내역'!$T:$T),0) -> 37,500,000 | K37: =J37/J$68 -> 4.5% | N37: =IFERROR(M37/M$68,"") -> 
D39: 기술정보활동비 | E39: 기술정보활동비 | H39: =IFERROR(G39/G$68,"") ->  | J39: =IFERROR(SUMIF('3.연구비세부내역'!$B:$B,'4.연구비총괄표_2차'!D39,'3.연구비세부내역'!$T:$T),0) -> 16,350,000 | K39: =J39/J$68 -> 2.0% | N39: =IFERROR(M39/M$68,"") -> 
D41: 연구개발서비스 활용비 등 | E41: 연구개발서비스 활용비 등 | H41: =IFERROR(G41/G$68,"") ->  | J41: =IFERROR(SUMIF('3.연구비세부내역'!$B:$B,'4.연구비총괄표_2차'!D41,'3.연구비세부내역'!$T:$T),0) -> 1,212,000 | K41: =J41/J$68 -> 0.1% | N41: =IFERROR(M41/M$68,"") -> 
D43: 특허출원 및 등록비 | E43: 특허출원 및 등록비 | H43: =IFERROR(G43/G$68,"") ->  | J43: =IFERROR(SUMIF('3.연구비세부내역'!$B:$B,'4.연구비총괄표_2차'!D43,'3.연구비세부내역'!$T:$T),0) -> 5,500,500 | K43: =J43/J$68 -> 0.7% | N43: =IFERROR(M43/M$68,"") -> 
D45: 연구과제 추진비 | G45: =SUM(G47:G51) -> 0 | H45: =IFERROR(G45/G$68,"") ->  | J45: =SUM(J47:J51) -> 1,236,583 | K45: =J45/J$68 -> 0.1% | M45: =SUM(M47:M51) -> 0 | N45: =IFERROR(M45/M$68,"") -> 
D47: 국내여비 | E47: 국내여비 | H47: =IFERROR(G47/G$68,"") ->  | J47: =IFERROR(SUMIF('3.연구비세부내역'!$B:$B,'4.연구비총괄표_2차'!D47,'3.연구비세부내역'!$T:$T),0) -> 88,880 | K47: =J47/J$68 -> 0.0% | N47: =IFERROR(M47/M$68,"") -> 
D49: 연구환경유지비 | E49: 연구환경유지비 | H49: =IFERROR(G49/G$68,"") ->  | J49: =IFERROR(SUMIF('3.연구비세부내역'!$B:$B,'4.연구비총괄표_2차'!D49,'3.연구비세부내역'!$T:$T),0) -> 272,703 | K49: =J49/J$68 -> 0.0% | N49: =IFERROR(M49/M$68,"") -> 
D51: 회의비 | E51: 회의비 | H51: =IFERROR(G51/G$68,"") ->  | J51: =IFERROR(SUMIF('3.연구비세부내역'!$B:$B,'4.연구비총괄표_2차'!D51,'3.연구비세부내역'!$T:$T),0) -> 875,000 | K51: =J51/J$68 -> 0.1% | N51: =IFERROR(M51/M$68,"") -> 
D53: 연구수당 | H53: =IFERROR(G53/G$68,"") ->  | J53: =IFERROR(SUMIF('3.연구비세부내역'!$B:$B,'4.연구비총괄표_2차'!D53,'3.연구비세부내역'!$T:$T),0) -> 45,050,000 | K53: =J53/J$68 -> 5.4% | N53: =IFERROR(M53/M$68,"") -> 
D55: 지식재산권 관리비 | H55: =IFERROR(G55/G$68,"") ->  | J55: =IFERROR(SUMIF('3.연구비세부내역'!$B:$B,'4.연구비총괄표_2차'!D55,'3.연구비세부내역'!$T:$T),0) -> 8,500,000 | K55: =J55/J$68 -> 1.0% | N55: =IFERROR(M55/M$68,"") -> 
D57: 과학문화활동비 | H57: =IFERROR(G57/G$68,"") ->  | J57: =IFERROR(SUMIF('3.연구비세부내역'!$B:$B,'4.연구비총괄표_2차'!D57,'3.연구비세부내역'!$T:$T),0) -> 5,750,000 | K57: =J57/J$68 -> 0.7% | N57: =IFERROR(M57/M$68,"") -> 
D59: 연구실안전관리비 | H59: =IFERROR(G59/G$68,"") ->  | J59: =IFERROR(SUMIF('3.연구비세부내역'!$B:$B,'4.연구비총괄표_2차'!D59,'3.연구비세부내역'!$T:$T),0) -> 6,250,000 | K59: =J59/J$68 -> 0.7% | N59: =IFERROR(M59/M$68,"") -> 
D61: 위탁연구개발비 | H61: =IFERROR(G61/G$68,"") ->  | J61: =IFERROR(SUMIF('3.연구비세부내역'!$B:$B,'4.연구비총괄표_2차'!D61,'3.연구비세부내역'!$T:$T),0) -> 68,960,000 | K61: =J61/J$68 -> 8.3% | N61: =IFERROR(M61/M$68,"") -> 
C63: 간접비 | H63: =IFERROR(G63/G$68,"") ->  | J63: ='3.연구비세부내역'!T291 -> 8,567,000 | K63: =IFERROR(J63/J$68,"") -> 1.0% | N63: =IFERROR(M63/M$68,"") -> 
C66: 총계1 (연구기자재 1, 2 제외) | G66: =IFERROR(SUM(G9,G63)-SUM(G23,G25),0) -> 0 | J66: =IFERROR(SUM(J9,J63)-SUM(J23,J25),0) -> 624,315,874 | M66: =IFERROR(SUM(M9,M63)-SUM(M23,M25),0) -> 0
C68: 총계1 (연구기자재 1, 2 포함) | G68: =IFERROR(SUM(G9,G63),0) -> 0 | J68: =IFERROR(SUM(J9,J63),0) -> 834,315,874 | M68: =IFERROR(SUM(M9,M63),0) -> 0

Sheet 5.계획서표지_2차 (hidden)
B2: 기관고유사업 연차실적 계획서 (계속과제용)
B4: 사업구분 | F4: 기관목적사업 | P4: 주요임무형 | R4: 일반과제
B6: 대과제(단위사업)명 | F6: 미래원천연구사업 | R6: 연구책임자
B8: 종과제명 | F8: 차세대 수소-에너지 변환 원천기술 개발 | R8: 연구책임자
B10: (세부)과제명 | F10: 한글) | G10: 고온/고압 전기화학적 막 반응기 개발 | R10: 연구책임자
F11: 영문)
B13: 중점연구영역 | F13: 분야명 : 에너지환경 원천기술 개발 | T13: 해당 안됨
B15: 세부성과목표/지표 | F15: 세부성과목표 | M15: 성과지표 | T15: 해당 안됨
B17: 협동연구 형태 | F17: 단독연구 | I17: 산업계 학계 연구계 지역 국제공동 남북한
B19: 연구성격 | F19: 연구단계 | I19: 기초 | K19: 응용 | M19: 개발 | O19: 기획 | Q19: 기타 :
F20: 기술성격 | I20: Seed연구 | L20: 원천기술 | O20: 산업계 현안기술 | S20: 첨단 추격기술
B22: 총괄연구책임자 | H22: 부서 | I22: 연료전지지연구센터 | P22: 전화번호
B24: 참여인원 | F24: =IFERROR("총 "&COUNTIF('3.연구비세부내역'!$E$16:$E$45,"내부")+COUNTIF('3.연구비세부내역'!$E$16:$E$45,"외부")+COUNTIF('3.연구비세부내역'!$E$16:$E$45,"학생")&"명 "&"(내부 : "&COUNTIF('3.연구비세부내역'!$E$16:$E$45,"내부")&"명, 외부 : "&COUNTIF('3.연구비세부내역'!$E$16:$E$45,"외부")+COUNTIF('3.연구비세부내역'!$E$16:$E$45,"학생")&"명)",0) -> 총 26명 (내부 : 8명, 외부 : 18명)
B26: 총 연구기간
B28: 연구비 | F28: 연차 | H28: 기간 | M28: 내부 출연금 | P28: 외부 출연금 | S28: 합계
F29: 1차 년도 | H29: 2011-01-12 | J29: ~ | K29: 2011-01-12 | M29: ='4.연구비총괄표_2차'!G68 -> 0 | S29: =IFERROR(SUM(M29:R29),"") -> 0
F30: 2차 년도 | H30: =IFERROR(IF('1.계상기준'!E7="","",'1.계상기준'!E7),"") -> 2016-01-01 | J30: ~ | K30: =IFERROR(IF('1.계상기준'!H7="","",'1.계상기준'!H7),"") -> 2016-12-31 | M30: =IFERROR(IF('1.계상기준'!$L$7=2,'4.연구비총괄표_2차'!$J$68,""),"") ->  | S30: =IFERROR(SUM(M30:R30),"") -> 0
F31: 3차 년도 | H31: 2011-01-12 | J31: ~ | K31: 2011-01-12 | M31: ='4.연구비총괄표_2차'!M68 -> 0 | S31: =IFERROR(SUM(M31:R31),"") -> 0
F32: 총 계 | M32: =IFERROR(SUM(M29:O31),"") -> 0 | P32: =IFERROR(SUM(P29:R31),"") -> 0 | S32: =IFERROR(SUM(S29:U31),"") -> 0
B34: 산학연지역 협동 | F34: 협동기관명 | H34: 중소기업 대기업 | P34: 분담연구비
F35: 과제명 | R35: 연구책입자
B37: 국제공동(남북한) 연구 협력 | F37: 국가 및 기관명 | P37: 분담연구비
F38: 협력/연구내용 | R38: 연구책입자
B40: 위탁 연구 | F40: 과제명 | N40: 위탁연구비 | Q40: 위탁연구기관 | T40: 연구책임자
F41: =IFERROR(IF('3.연구비세부내역'!E285="","",'3.연구비세부내역'!E285),"") -> R***** T***** of ****** H***** | N41: =IFERROR(IF('3.연구비세부내역'!T285="","",'3.연구비세부내역'!T285),"") -> 18,560,000 | Q41: =IFERROR(IF('3.연구비세부내역'!N285="","",'3.연구비세부내역'!N285),"") -> T***** Univ. | T41: =IFERROR(IF('3.연구비세부내역'!R285="","",'3.연구비세부내역'!R285),"") -> P*****
F42: =IFERROR(IF('3.연구비세부내역'!E286="","",'3.연구비세부내역'!E286),"") -> R***** | N42: =IFERROR(IF('3.연구비세부내역'!T286="","",'3.연구비세부내역'!T286),"") -> 25,000,000 | Q42: =IFERROR(IF('3.연구비세부내역'!N286="","",'3.연구비세부내역'!N286),"") -> S***** Univ. | T42: =IFERROR(IF('3.연구비세부내역'!R286="","",'3.연구비세부내역'!R286),"") -> S*****
F43: =IFERROR(IF('3.연구비세부내역'!E287="","",'3.연구비세부내역'!E287),"") -> 메******* 개발 | N43: =IFERROR(IF('3.연구비세부내역'!T287="","",'3.연구비세부내역'!T287),"") -> 8,000,000 | Q43: =IFERROR(IF('3.연구비세부내역'!N287="","",'3.연구비세부내역'!N287),"") -> 경***** | T43: =IFERROR(IF('3.연구비세부내역'!R287="","",'3.연구비세부내역'!R287),"") -> 김*****
F44: =IFERROR(IF('3.연구비세부내역'!E288="","",'3.연구비세부내역'!E288),"") -> 고****** | N44: =IFERROR(IF('3.연구비세부내역'!T288="","",'3.연구비세부내역'!T288),"") -> 5,400,000 | Q44: =IFERROR(IF('3.연구비세부내역'!N288="","",'3.연구비세부내역'!N288),"") -> 중***** | T44: =IFERROR(IF('3.연구비세부내역'!R288="","",'3.연구비세부내역'!R288),"") -> 이*****
F45: =IFERROR(IF('3.연구비세부내역'!E289="","",'3.연구비세부내역'!E289),"") -> 고********* | N45: =IFERROR(IF('3.연구비세부내역'!T289="","",'3.연구비세부내역'!T289),"") -> 12,000,000 | Q45: =IFERROR(IF('3.연구비세부내역'!N289="","",'3.연구비세부내역'!N289),"") -> 광***** | T45: =IFERROR(IF('3.연구비세부내역'!R289="","",'3.연구비세부내역'!R289),"") -> 나*****
B48: 관련 규정을 준수하면서 본 기관고유사업을 성실히 수행하고자 기관고유사업 연구 계획서를 제출합니다.
K50: 년 | M50: 월 | O50: 일
I52: 연구책임자 : | O52: 인
B54: H******* 귀하

Sheet 4.연구비총괄표_3차 (hidden)
B2: 5. 연구비 소요명세서
C4: 가. 총괄표 | M4: (단위 : 원)
C6: 비목 | D6: 세목 | G6: 1차 년도 | H6: 비율 | J6: 2차 년도 | K6: 비율 | M6: 3차 년도 | N6: 비율
C9: 직접비 | G9: =IFERROR(SUM(G11,G21,G33,G45,G53,G55,G57,G59,G61),0) -> 0 | H9: =IFERROR(G9/G$68,"") ->  | J9: =IFERROR(SUM(J11,J21,J33,J45,J53,J55,J57,J59,J61),0) -> 0 | K9: =IFERROR(J9/J$68,"") ->  | M9: =IFERROR(SUM(M11,M21,M33,M45,M53,M55,M57,M59,M61),0) -> 825,748,874 | N9: =IFERROR(M9/M$68,"") -> 99.0%
D11: 인건비 | G11: =SUM(G13:G19) -> 0 | H11: =IFERROR(G11/G$68,"") ->  | J11: =SUM(J13:J19) -> 0 | K11: =IFERROR(J11/J$68,"") ->  | M11: =SUM(M13:M19) -> 417,278,680 | N11: =IFERROR(M11/M$68,"") -> 50.0%
D13: 내부정직원 | E13: 내부인건비 - 정직원 | H13: =IFERROR(G13/G$68,"") ->  | K13: =IFERROR(J13/J$68,"") ->  | M13: =IFERROR(SUMIF('3.연구비세부내역'!$B:$B,'4.연구비총괄표_3차'!D13,'3.연구비세부내역'!$T:$T),0) -> 207,121,700 | N13: =IFERROR(M13/M$68,"") -> 24.8%
D15: 내부무기계약직 | E15: 내부인건비 - 무기계약직 | H15: =IFERROR(G15/G$68,"") ->  | K15: =IFERROR(J15/J$68,"") ->  | M15: =IFERROR(SUMIF('3.연구비세부내역'!$B:$B,'4.연구비총괄표_3차'!D15,'3.연구비세부내역'!$T:$T),0) -> 21,480,220 | N15: =IFERROR(M15/M$68,"") -> 2.6%
D17: 외부 | E17: 외부인건비 | H17: =IFERROR(G17/G$68,"") ->  | K17: =IFERROR(J17/J$68,"") ->  | M17: =IFERROR(SUMIF('3.연구비세부내역'!$B:$B,'4.연구비총괄표_3차'!D17,'3.연구비세부내역'!$T:$T),0) -> 142,176,760 | N17: =IFERROR(M17/M$68,"") -> 17.0%
D19: 학생 | E19: 학생인건비 | H19: =IFERROR(G19/G$68,"") ->  | K19: =IFERROR(J19/J$68,"") ->  | M19: =IFERROR(SUMIF('3.연구비세부내역'!$B:$B,'4.연구비총괄표_3차'!D19,'3.연구비세부내역'!$T:$T),0) -> 46,500,000 | N19: =IFERROR(M19/M$68,"") -> 5.6%
D21: 연구장비재료비 | G21: =SUM(G23:G31) -> 0 | H21: =IFERROR(G21/G$68,"") ->  | J21: =SUM(J23:J31) -> 0 | K21: =IFERROR(J21/J$68,"") ->  | M21: =SUM(M23:M31) -> 210,961,111 | N21: =IFERROR(M21/M$68,"") -> 25.3%
D23: 연구기자재비1 | E23: 연구기자재1 | H23: =IFERROR(G23/G$68,"") ->  | K23: =IFERROR(J23/J$68,"") ->  | M23: =IFERROR(SUMIF('3.연구비세부내역'!$B:$B,'4.연구비총괄표_3차'!D23,'3.연구비세부내역'!$T:$T),0) -> 100,000,000 | N23: =IFERROR(M23/M$68,"") -> 12.0%
D25: 연구기자재비2 | E25: 연구기자재2 | H25: =IFERROR(G25/G$68,"") ->  | K25: =IFERROR(J25/J$68,"") ->  | M25: =IFERROR(SUMIF('3.연구비세부내역'!$B:$B,'4.연구비총괄표_3차'!D25,'3.연구비세부내역'!$T:$T),0) -> 110,000,000 | N25: =IFERROR(M25/M$68,"") -> 13.2%
C27: 시설비 | D27: 연구기자재비3 | E27: 연구기자재3 및 시설비 | H27: =IFERROR(G27/G$68,"") ->  | K27: =IFERROR(J27/J$68,"") ->  | M27: =IFERROR(SUMIF('3.연구비세부내역'!$B:$B,'4.연구비총괄표_3차'!C27,'3.연구비세부내역'!$T:$T)+SUMIF('3.연구비세부내역'!$B:$B,'4.연구비총괄표_3차'!D27,'3.연구비세부내역'!$T:$T),0) -> 800,000 | N27: =IFERROR(M27/M$68,"") -> 0.1%
D29: 재료비 및 전산처리비 | E29: 재료비 및 전산처리비 | H29: =IFERROR(G29/G$68,"") ->  | K29: =IFERROR(J29/J$68,"") ->  | M29: =IFERROR(SUMIF('3.연구비세부내역'!$B:$B,'4.연구비총괄표_3차'!D29,'3.연구비세부내역'!$T:$T),0) -> 50,000 | N29: =IFERROR(M29/M$68,"") -> 0.0%
D31: 시제품제작비 | E31: 시제품제작비 | H31: =IFERROR(G31/G$68,"") ->  | K31: =IFERROR(J31/J$68,"") ->  | M31: =IFERROR(SUMIF('3.연구비세부내역'!$B:$B,'4.연구비총괄표_3차'!D31,'3.연구비세부내역'!$T:$T),0) -> 111,111 | N31: =IFERROR(M31/M$68,"") -> 0.0%
D33: 연구활동비 | G33: =SUM(G35:G43) -> 0 | H33: =IFERROR(G33/G$68,"") ->  | J33: =SUM(J35:J43) -> 0 | K33: =IFERROR(J33/J$68,"") ->  | M33: =SUM(M35:M43) -> 61,762,500 | N33: =IFERROR(M33/M$68,"") -> 7.4%
D35: 국외여비 | E35: 국외여비 | H35: =IFERROR(G35/G$68,"") ->  | K35: =IFERROR(J35/J$68,"") ->  | M35: =IFERROR(SUMIF('3.연구비세부내역'!$B:$B,'4.연구비총괄표_3차'!D35,'3.연구비세부내역'!$T:$T),0) -> 1,200,000 | N35: =IFERROR(M35/M$68,"") -> 0.1%
D37: 수용비 및 수수료 | E37: 수용비 및 수수료 | H37: =IFERROR(G37/G$68,"") ->  | K37: =IFERROR(J37/J$68,"") ->  | M37: =IFERROR(SUMIF('3.연구비세부내역'!$B:$B,'4.연구비총괄표_3차'!D37,'3.연구비세부내역'!$T:$T),0) -> 37,500,000 | N37: =IFERROR(M37/M$68,"") -> 4.5%
D39: 기술정보활동비 | E39: 기술정보활동비 | H39: =IFERROR(G39/G$68,"") ->  | K39: =IFERROR(J39/J$68,"") ->  | M39: =IFERROR(SUMIF('3.연구비세부내역'!$B:$B,'4.연구비총괄표_3차'!D39,'3.연구비세부내역'!$T:$T),0) -> 16,350,000 | N39: =IFERROR(M39/M$68,"") -> 2.0%
D41: 연구개발서비스 활용비 등 | E41: 연구개발서비스 활용비 등 | H41: =IFERROR(G41/G$68,"") ->  | K41: =IFERROR(J41/J$68,"") ->  | M41: =IFERROR(SUMIF('3.연구비세부내역'!$B:$B,'4.연구비총괄표_3차'!D41,'3.연구비세부내역'!$T:$T),0) -> 1,212,000 | N41: =IFERROR(M41/M$68,"") -> 0.1%
D43: 특허출원 및 등록비 | E43: 특허출원 및 등록비 | H43: =IFERROR(G43/G$68,"") ->  | K43: =IFERROR(J43/J$68,"") ->  | M43: =IFERROR(SUMIF('3.연구비세부내역'!$B:$B,'4.연구비총괄표_3차'!D43,'3.연구비세부내역'!$T:$T),0) -> 5,500,500 | N43: =IFERROR(M43/M$68,"") -> 0.7%
D45: 연구과제 추진비 | G45: =SUM(G47:G51) -> 0 | H45: =IFERROR(G45/G$68,"") ->  | J45: =SUM(J47:J51) -> 0 | K45: =IFERROR(J45/J$68,"") ->  | M45: =SUM(M47:M51) -> 1,236,583 | N45: =IFERROR(M45/M$68,"") -> 0.1%
D47: 국내여비 | E47: 국내여비 | H47: =IFERROR(G47/G$68,"") ->  | K47: =IFERROR(J47/J$68,"") ->  | M47: =IFERROR(SUMIF('3.연구비세부내역'!$B:$B,'4.연구비총괄표_3차'!D47,'3.연구비세부내역'!$T:$T),0) -> 88,880 | N47: =IFERROR(M47/M$68,"") -> 0.0%
D49: 연구환경유지비 | E49: 연구환경유지비 | H49: =IFERROR(G49/G$68,"") ->  | K49: =IFERROR(J49/J$68,"") ->  | M49: =IFERROR(SUMIF('3.연구비세부내역'!$B:$B,'4.연구비총괄표_3차'!D49,'3.연구비세부내역'!$T:$T),0) -> 272,703 | N49: =IFERROR(M49/M$68,"") -> 0.0%
D51: 회의비 | E51: 회의비 | H51: =IFERROR(G51/G$68,"") ->  | K51: =IFERROR(J51/J$68,"") ->  | M51: =IFERROR(SUMIF('3.연구비세부내역'!$B:$B,'4.연구비총괄표_3차'!D51,'3.연구비세부내역'!$T:$T),0) -> 875,000 | N51: =IFERROR(M51/M$68,"") -> 0.1%
D53: 연구수당 | H53: =IFERROR(G53/G$68,"") ->  | K53: =IFERROR(J53/J$68,"") ->  | M53: =IFERROR(SUMIF('3.연구비세부내역'!$B:$B,'4.연구비총괄표_3차'!D53,'3.연구비세부내역'!$T:$T),0) -> 45,050,000 | N53: =IFERROR(M53/M$68,"") -> 5.4%
D55: 지식재산권 관리비 | H55: =IFERROR(G55/G$68,"") ->  | K55: =IFERROR(J55/J$68,"") ->  | M55: =IFERROR(SUMIF('3.연구비세부내역'!$B:$B,'4.연구비총괄표_3차'!D55,'3.연구비세부내역'!$T:$T),0) -> 8,500,000 | N55: =IFERROR(M55/M$68,"") -> 1.0%
D57: 과학문화활동비 | H57: =IFERROR(G57/G$68,"") ->  | K57: =IFERROR(J57/J$68,"") ->  | M57: =IFERROR(SUMIF('3.연구비세부내역'!$B:$B,'4.연구비총괄표_3차'!D57,'3.연구비세부내역'!$T:$T),0) -> 5,750,000 | N57: =IFERROR(M57/M$68,"") -> 0.7%
D59: 연구실안전관리비 | H59: =IFERROR(G59/G$68,"") ->  | K59: =IFERROR(J59/J$68,"") ->  | M59: =IFERROR(SUMIF('3.연구비세부내역'!$B:$B,'4.연구비총괄표_3차'!D59,'3.연구비세부내역'!$T:$T),0) -> 6,250,000 | N59: =IFERROR(M59/M$68,"") -> 0.7%
D61: 위탁연구개발비 | H61: =IFERROR(G61/G$68,"") ->  | K61: =IFERROR(J61/J$68,"") ->  | M61: =IFERROR(SUMIF('3.연구비세부내역'!$B:$B,'4.연구비총괄표_3차'!D61,'3.연구비세부내역'!$T:$T),0) -> 68,960,000 | N61: =IFERROR(M61/M$68,"") -> 8.3%
C63: 간접비 | H63: =IFERROR(G63/G$68,"") ->  | K63: =IFERROR(J63/J$68,"") ->  | M63: ='3.연구비세부내역'!T291 -> 8,567,000 | N63: =IFERROR(M63/M$68,"") -> 1.0%
C66: 총계1 (연구기자재 1, 2 제외) | G66: =IFERROR(SUM(G9,G63)-SUM(G23,G25),0) -> 0 | J66: =IFERROR(SUM(J9,J63)-SUM(J23,J25),0) -> 0 | M66: =IFERROR(SUM(M9,M63)-SUM(M23,M25),0) -> 624,315,874
C68: 총계1 (연구기자재 1, 2 포함) | G68: =IFERROR(SUM(G9,G63),0) -> 0 | J68: =IFERROR(SUM(J9,J63),0) -> 0 | M68: =IFERROR(SUM(M9,M63),0) -> 834,315,874

Sheet 5.계획서표지_3차 (hidden)
B2: 기관고유사업 연차실적 계획서 (계속과제용)
B4: 사업구분 | F4: 기관목적사업 | P4: 주요임무형 | R4: 일반과제
B6: 대과제(단위사업)명 | F6: 미래원천연구사업 | R6: 연구책임자
B8: 종과제명 | F8: 차세대 수소-에너지 변환 원천기술 개발 | R8: 연구책임자
B10: (세부)과제명 | F10: 한글) | G10: 고온/고압 전기화학적 막 반응기 개발 | R10: 연구책임자
F11: 영문)
B13: 중점연구영역 | F13: 분야명 : 에너지환경 원천기술 개발 | T13: 해당 안됨
B15: 세부성과목표/지표 | F15: 세부성과목표 | M15: 성과지표 | T15: 해당 안됨
B17: 협동연구 형태 | F17: 단독연구 | I17: 산업계 학계 연구계 지역 국제공동 남북한
B19: 연구성격 | F19: 연구단계 | I19: 기초 | K19: 응용 | M19: 개발 | O19: 기획 | Q19: 기타 :
F20: 기술성격 | I20: Seed연구 | L20: 원천기술 | O20: 산업계 현안기술 | S20: 첨단 추격기술
B22: 총괄연구책임자 | H22: 부서 | I22: 연료전지지연구센터 | P22: 전화번호
B24: 참여인원 | F24: =IFERROR("총 "&COUNTIF('3.연구비세부내역'!$E$16:$E$45,"내부")+COUNTIF('3.연구비세부내역'!$E$16:$E$45,"외부")+COUNTIF('3.연구비세부내역'!$E$16:$E$45,"학생")&"명 "&"(내부 : "&COUNTIF('3.연구비세부내역'!$E$16:$E$45,"내부")&"명, 외부 : "&COUNTIF('3.연구비세부내역'!$E$16:$E$45,"외부")+COUNTIF('3.연구비세부내역'!$E$16:$E$45,"학생")&"명)",0) -> 총 26명 (내부 : 8명, 외부 : 18명)
B26: 총 연구기간
B28: 연구비 | F28: 연차 | H28: 기간 | M28: 내부 출연금 | P28: 외부 출연금 | S28: 합계
F29: 1차 년도 | H29: 2011-01-12 | J29: ~ | K29: 2011-01-12 | M29: ='4.연구비총괄표_3차'!G68 -> 0 | S29: =IFERROR(SUM(M29:R29),"") -> 0
F30: 2차 년도 | H30: 2011-01-12 | J30: ~ | K30: 2011-01-12 | M30: ='4.연구비총괄표_3차'!J68 -> 0 | S30: =IFERROR(SUM(M30:R30),"") -> 0
F31: 3차 년도 | H31: =IFERROR(IF('1.계상기준'!E7="","",'1.계상기준'!E7),"") -> 2016-01-01 | J31: ~ | K31: =IFERROR(IF('1.계상기준'!H7="","",'1.계상기준'!H7),"") -> 2016-12-31 | M31: =IFERROR(IF('1.계상기준'!$L$7=3,'4.연구비총괄표_3차'!$M$68,""),"") ->  | S31: =IFERROR(SUM(M31:R31),"") -> 0
F32: 총 계 | M32: =IFERROR(SUM(M29:O31),"") -> 0 | P32: =IFERROR(SUM(P29:R31),"") -> 0 | S32: =IFERROR(SUM(S29:U31),"") -> 0
B34: 산학연지역 협동 | F34: 협동기관명 | H34: 중소기업 대기업 | P34: 분담연구비
F35: 과제명 | R35: 연구책입자
B37: 국제공동(남북한) 연구 협력 | F37: 국가 및 기관명 | P37: 분담연구비
F38: 협력/연구내용 | R38: 연구책입자
B40: 위탁 연구 | F40: 과제명 | N40: 위탁연구비 | Q40: 위탁연구기관 | T40: 연구책임자
F41: =IFERROR(IF('3.연구비세부내역'!E285="","",'3.연구비세부내역'!E285),"") -> R***** T***** of ****** H***** | N41: =IFERROR(IF('3.연구비세부내역'!T285="","",'3.연구비세부내역'!T285),"") -> 18,560,000 | Q41: =IFERROR(IF('3.연구비세부내역'!N285="","",'3.연구비세부내역'!N285),"") -> T***** Univ. | T41: =IFERROR(IF('3.연구비세부내역'!R285="","",'3.연구비세부내역'!R285),"") -> P*****
F42: =IFERROR(IF('3.연구비세부내역'!E286="","",'3.연구비세부내역'!E286),"") -> R***** | N42: =IFERROR(IF('3.연구비세부내역'!T286="","",'3.연구비세부내역'!T286),"") -> 25,000,000 | Q42: =IFERROR(IF('3.연구비세부내역'!N286="","",'3.연구비세부내역'!N286),"") -> S***** Univ. | T42: =IFERROR(IF('3.연구비세부내역'!R286="","",'3.연구비세부내역'!R286),"") -> S*****
F43: =IFERROR(IF('3.연구비세부내역'!E287="","",'3.연구비세부내역'!E287),"") -> 메******* 개발 | N43: =IFERROR(IF('3.연구비세부내역'!T287="","",'3.연구비세부내역'!T287),"") -> 8,000,000 | Q43: =IFERROR(IF('3.연구비세부내역'!N287="","",'3.연구비세부내역'!N287),"") -> 경***** | T43: =IFERROR(IF('3.연구비세부내역'!R287="","",'3.연구비세부내역'!R287),"") -> 김*****
F44: =IFERROR(IF('3.연구비세부내역'!E288="","",'3.연구비세부내역'!E288),"") -> 고****** | N44: =IFERROR(IF('3.연구비세부내역'!T288="","",'3.연구비세부내역'!T288),"") -> 5,400,000 | Q44: =IFERROR(IF('3.연구비세부내역'!N288="","",'3.연구비세부내역'!N288),"") -> 중***** | T44: =IFERROR(IF('3.연구비세부내역'!R288="","",'3.연구비세부내역'!R288),"") -> 이*****
F45: =IFERROR(IF('3.연구비세부내역'!E289="","",'3.연구비세부내역'!E289),"") -> 고********* | N45: =IFERROR(IF('3.연구비세부내역'!T289="","",'3.연구비세부내역'!T289),"") -> 12,000,000 | Q45: =IFERROR(IF('3.연구비세부내역'!N289="","",'3.연구비세부내역'!N289),"") -> 광***** | T45: =IFERROR(IF('3.연구비세부내역'!R289="","",'3.연구비세부내역'!R289),"") -> 나*****
B48: 관련 규정을 준수하면서 본 기관고유사업을 성실히 수행하고자 기관고유사업 연구 계획서를 제출합니다.
K50: 년 | M50: 월 | O50: 일
I52: 연구책임자 : | O52: 인
B54: H******* 귀하

Sheet 항목 (hidden)
C5: 1. 직접비
D6: 가. 인건비
E7: 1) 내부인건비-정규직
E8: 2) 내부인건비-무기계약직
E9: 2) 외부인건비
E10: 3) 학생인건비
D11: 나. 연구장비재료비
E12: 1) 연기기자재구입비 및 시설비
E13: 2) 재료비 및 전산처리비
E14: 3) 시작품 제작비
D15: 다. 연구활동비
E16: 1) 국외여비
E17: 2) 수용비 및 수수료
E18: 3) 기술정보활동비
E19: 4) 연구개발서비스 활용비 등
E20: 5) 특허출원 및 등록비
D21: 라. 연구과제추진비
E22: 1) 국내여비
E23: 2) 연구환경유지비
E24: 3) 회의비
D25: 마. 연구수당
D26: 바. 지식재산권 관리비
D27: 사. 과학문화활동비
D28: 아. 연구실안전관리비
D29: 자. 위탁연구개발비
C30: 2. 간접비

Sheet Key_세세목 (hidden)
B5: 1_가 | D5: 1_나_1 | F5: 1_나_2 | H5: 1_나_3 | J5: 1_다_3 | L5: 1_다_4
A6: 1 | B6: 2 | D6: 연구기자재비1 | F6: 시약 재료구입비 | H6: 시제품 | J6: 국내외 훈련비 | L6: 시험/분석/검사
B7: 정직원 | D7: 연구기자재비2 | F7: 전산처리 및 관리비 | H7: 시작품 | J7: 전문가 초청/자문비 | L7: 임상시험
B8: 무기계약직 | D8: 연구기자재비3 | F8: S/W 구입 | H8: 시험설비 제작 경비 | J8: 과학기술자 유치 파견지원금 | L8: 기술정보수집
D9: 시설비 | J9: 기술도입비 | L9: 특허정보조사
D10: 운영비 | J10: 해외연구소 설치/운영비 | L10: 정보DB 사용료
L11: 설문조사비
